{"text_format":"1","workbook":"xlsx","n_sheets":11,"sheets":["Utilitaire","Accueil","Description","Détail des projets","GES","Indicateurs","Évaluation","Commentaires","Validation","Modalités de fin du PACC","Prochain Exercice-Commentaire"],"not_rendered":{"charts":0,"images":10,"macros":1,"external_links":0,"defined_names":480,"comments":2,"pivot_tables":0},"unopened":[],"bounds":{"document_bytes":16777216,"sheet_cells":100000,"rows_first":2000,"rows_last":500,"rows_between":2000,"halvings":0,"cell_chars":16384,"cell_head_chars":4096},"cells_cut":0,"cells_raw":0,"read":"whole","date_system":"1900"}

{"sheet":"Utilitaire","index":0,"n_rows":239,"n_cols":18,"rows_kept":239,"cut":false,"hidden":true,"merged":[[15,1,15,5],[15,8,15,9],[39,1,39,5]]}
[]
[]
[null,"Mot de passe:","!1320PACC","Fiche verrouillée:","Oui - diffusion en ligne"]
[null,"Fiche validée:","Oui","Fiche générée"]
[null,"GES attendu:",null,"Est-ce que le pop-up \"validation\" s'affiche:","Générée"]
[null,"Feuille accueil complètement remplie:","Oui","Exercice de suivi:","2022-03-31","Date de l'exercice:","2022-03-31"]
[null,"Statut action:",{"$f":"Accueil!D58","v":"en cours"},null,null,"Année Courante","2022-2023"]
[null,"Feuille Utilitaire visible:","Non","Titre des Onglets:","Plan d'action 2013-2020 sur les changements climatiques"]
[null,"Dernière ligne de la zone de défilement de l'onglet détail des projets:",70]
[null,"nombre d'indicateurs approuvés:",3]
[null,"Secteur:","Plan d'action 2013-2020 sur les changements climatiques"]
[null,"Numéro de séquence de l'action:",29.021999999999998,"Remplir la section Évaluation requis : ",{"$f":"IF(Utilitaire!C7=I21,\"Oui\",IF(C7=I23,\"Oui\",\"Non\"))","v":"Non"},"Première ligne masquée dans l'onglet Indicateurs : ",164]
[null,"Première ligne masquée dans l'onglet Description:",78,"Affiche onglet Évaluation:","Oui","Première ligne masquée dans l'onglet Évaluation:",57]
[]
[null,"Listes Déroulantes"]
[null,"Onglet \"Détail des projets\"",null,null,null,null,"Onglet \"Indicateurs\"","DRFM COF","Accueil"]
[null,"Région Administrative","Statut","Classification","Type d'émissions","Info GES","Type d'indicateur","Exercice de suivi","Statut de l'action","Programmes","Fiche verrouillée"]
[null,"99-toutes les régions","COVID-19 - Reporté ou prolongé","SU-Subvention","QC-Québec","Oui","Minimum à atteindre","2013-2014-1","non démarrée","Sans objet","Oui - partenaire"]
[null,"01-Bas-Saint-Laurent","COVID-19 - Suspendu","CF-Contrat fonctionnement","HQ-Hors-Québec","Non","Maximum à ne pas dépasser","2013-2014-2","en élaboration","Programme \"Faites de l'air!\"","Oui - diffusion en ligne"]
[null,"02-Saguenay- Lac-Saint-Jean","COVID-19 - Annulé","CI-Contrat immobilisation","ND-Non distingué",null,"Binaire","2014-2015-1","en cours","Programme Action-Climat Québec","Non - BGFV"]
[null,"03-Capitale-Nationale","AC-Actif","CP-Contrat service professionnel",null,null,null,"2014-2015-2","terminée","Programme Chauffez vert"]
[null,"04-Mauricie ","TE-Terminé","CT-Contrat service technique",null,null,null,"2015-2016-1","en suspens","Programme Climat municipalités - Phase 2"]
[null,"05-Estrie","AT-En attente","PI-Projet à l'interne",null,null,null,"2015-2016-2","Retirée du PACC","Programme d’aide gouvernementale à l’amélioration des services de transport en commun (PAGASTC )"]
[null,"06-Montréal","SU-Suspendu","AU-Autre",null,null,"Étape","2016-2017-1",null,"Programme d’aide gouvernementale au transport collectif des personnes (PAGTCP)"]
[null,"07-Outaouais","AN-Annulé",null,null,null,"Recherche","2016-2017-2",null,"Programme d’aide gouvernementale transitoire en matière de transport routier des personnes","Commentaires"]
[null,"08-Abitibi-Témiscamingue","AB-Abandonné",null,null,null,"Étude de cas et caractérisation des impacts des CC","2017-2018-1",null,"Programme d'aide à la réduction des émissions de gaz à effet de serre dans le transport routier des marchandises - ÉcoCamionnage","Accueil"]
[null,"09-Côte-Nord","Projet en lien avec le transport","Horizon temporel Potentiel GES",null,"Catégories","Surveillance et prévention","2017-2018-2",null,"Programme d'aide à la réhabilitation des terrains contaminés - ClimatSol-Plus - Volet 1","Description"]
[null,"10-Nord-du-Québec","Oui","À la fin du projet (suite au dernier versement)",null,"Agricole","Réalisation","2018-2019-1",null,"Programme d'aide à l'amélioration de l'efficacité du transport maritime, aérien et ferroviaire en matière de réduction des émissions de GES (PETMAF)","Détail des projets"]
[null,"11-Gaspésie-Iles-de-la-Madeleine","Non","Cinq ans après la commercialisation du produit",null,"Aménagement du territoire","Aide à la décision","2018-2019-2","Part de financement par le PACC","Programme d'aide au développement du transport collectif (PADTC)","GES"]
[null,"12-Chaudières-Appalaches",null,"Dix ans après la commercialisation du produit",null,"Bâtiment","Sensibilisation et formation","2019-2020-1","Variable","Programme d'aide aux nouvelles mobilités des personnes (NOMO)","Indicateurs"]
[null,"13-Laval",null,2030,null,"Biodiversité, écosystèmes et ressources naturelles","Cadre législatif","2019-2020-2",{"$f":"10 & \" %\"","v":"10 %"},"Programme d'aide financière au développement des transports actifs dans les périmètres urbains (TAPU)","Validation"]
[null,"14-Lanaudière",null,2040,null,"Industriel, commercial et institutionnel",null,"2020-2021-1",{"$f":"20 & \" %\"","v":"20 %"},"Programme d'aide financière pour la planification de milieux de vie durables","Tout - autres"]
[null,"15-Laurentides",null,2050,null,"Matières résiduelles",null,"2020-2021-2",{"$f":"30 & \" %\"","v":"30 %"},"Programme d'aide financière pour le compostage domestique et communautaire (ACDC)"]
[null,"16-Montérégie",null,null,null,"Reddition de comptes et partenariats",null,"2021-2022-1",{"$f":"40 & \" %\"","v":"40 %"},"Programme d'aide gouvernementale au transport collectif régional (PAGTCR)"]
[null,"17-Centre-du-Québec",null,null,null,"Santé et sécurité publique","Ajustements","2021-2022-2",{"$f":"50 & \" %\"","v":"50 %"},"Programme d'appui à la lutte contre les changements climatiques en agriculture (PALCCA)","Onglet Évaluation"]
[null,"Québec méridional",null,null,null,"Transports","Agriculture","2022-2023-1",{"$f":"60 & \" %\"","v":"60 %"},"Programme de biomasse forestière résiduelle","Type de document"]
[null,"À l'extérieur du Québec",null,null,null,"Autres","Aménagement du territoire","2022-2023-2",{"$f":"70 & \" %\"","v":"70 %"},"Programme de coopération climatique internationale (PCCI)","Cadre d'évaluation"]
[null,null,null,null,null,null,"Bâtiments et infrastructures","2023-2024-1",{"$f":"80 & \" %\"","v":"80 %"},"Programme de formation continue sur l'utilisation du bois dans la construction","Cadre de suivi d'évaluation préliminaire"]
[null,null,null,null,null,null,"Forêts","2023-2024-2",{"$f":"90 & \" %\"","v":"90 %"},"Programme de récupération et de valorisation des réfrigérateurs et congélateurs domestiques","Rapport d'évaluation"]
[null,"Onglet \"Description\"",null,null,null,null,"Industriel, commercial et institutionnel",null,{"$f":"100 & \" %\"","v":"100 %"},"Programme de soutien à la promotion de l'électrification des transports","Résultats"]
[null,"Clientèle","État d'avancement","Moyens","Finalité","COVID","Océan, fleuve ou cours d'eau",null,null,"Programme de soutien à la réalisation de projets de démonstration de taxis électriques"]
[null,"Citoyens","Nouvelle","Encadrement légal (politiques, stratégies, codes, réglementations, etc.)","Adaptation aux effets des changements climatiques","Aucun changement prévu","Politiques et gestion",null,null,"Programme de soutien à l'intégration de l'adaptation aux changements climatiques à la planification municipale (PIACC)","Type d'évaluation"]
[null,"Entreprises (grandes entreprises)","En cours","Innovation, recherche et développement","Réduction des émissions de gaz à effet de serre","Diminution des coûts prévus","Services à la population",null,null,"Programme de soutien au déploiement des autobus scolaires électriques au Québec","En cours d'action"]
[null,"Entreprises (petites ou moyennes entreprises)","Complétée","Réalisation (programmes et subventions favorisant l'exécution de solutions établies)","Réduction et adaptation","Augmentation des coûts prévus","Suivi de l'état de l'environnement",null,null,"Programme de soutien aux essais de fertilisation","Lorsque l'action est terminée"]
[null,"Établissements de recherche","Inactive","Sensibilisation, formation et promotion","Coordination","L'augmentation prévue du coûts des projets rend le budget 2013-2020 insuffisant pour garantir la réalisation de tous les projets entamés","Autres",null,null,"Programme de soutien aux municipalités dans la mise en place d'infrastructures de gestion durable des eaux de pluie à la source"]
[null,"Ministères et organismes gouvernementaux","Abandonnée",null,null,"moins d'un mois",null,null,null,"Programme de subventions à l’adaptation des taxis et des autocars interurbains pour le transport des personnes se déplaçant en fauteuil roulant"]
[null,"Municipalités et organismes municipaux",null,null,null,"de 1 à 6 mois",null,null,null,"Programme de traitement des matières organiques par biométhanisation et compostage (PTMOBC)","Recommandation"]
[null,"Organismes à but non lucratif",null,null,null,"de 7 à 12 mois",null,null,null,"Programme de vitrine technologique pour les bâtiments et les solutions innovantes en bois","Reconduire"]
[null,null,null,null,null,"plus de 12 mois",null,null,null,"Programme d'innovation en construction bois","Ne pas reconduire"]
[null,null,null,null,null,"Aucun changement","Risques",null,null,"Programme ÉcoPerformance","Voir commentaire ci-dessous"]
[null,null,null,null,null,"Retards prévus, mais les engagements seront tous pris avant le 31 décembre 2020","Biodiversité",null,null,"Programme Prime-Vert 2013-2018","Objectifs initiaux"]
[null,null,null,null,null,"Retards prévus et les engagements ne pourront pas tous être pris avant le 31 décembre 2020","Économie",null,null,"Programme Roulez vert","Oui"]
[null,null,null,null,null,"Les échéanciers pourront être devancés","Environnement",null,null,"Programme Technoclimat","Partiellement"]
[null,null,null,null,null,"Des cibles pourraient être atteintes avant les délais prévus","Ressources naturelles",null,null,"Programme visant à rendre les établissements d'enseignement écoresponsables","Non"]
[null,null,null,null,null,"Toutes les cibles devraient être atteintes dans les délais prévus","Santé et sécurité publique",null,null,"Programme visant la réduction des émissions de GES par le développement du transport intermodal (PREGTI)"]
[null,null,null,null,null,"Toutes les cibles devraient être atteintes avec certains retards","Services à la population",null,null,"Programme visant la réduction, la récupération et le recyclage des matières organiques du secteur des industries, commerces et institutions (ICI)"]
[]
[null,null,null,null,null,"Aucune cible ne pourra être atteinte",null,null,null,"Autre programme"]
[]
[]
[null,null,null,null,null,null,"Effets des changements climatiques"]
[null,null,null,null,null,null,"Dégradation d'écosystèmes"]
[null,null,null,null,null,null,"Dégradation du pergélisol"]
[null,null,null,null,null,null,"Intensification de l'érosion"]
[null,null,null,null,null,null,"Exacerbation des aléas naturels"]
[null,null,null,null,null,null,"Intensification des îlots de chaleur"]
[null,null,null,null,null,null,"Modifications des régimes hydriques, de vagues ou de glaces"]
[null,null,null,null,null,null,"Modifications des régimes de précipitations"]
[null,null,null,null,null,null,"Propagation de maladies ou d'espèces nuisibles"]
[null,null,null,null,null,null,"Qualité de l'air"]
[null,null,null,null,null,null,"Tous les effets"]
[null,null,null,null,null,null,"Autres"]
[]
[]
[]
[]
[]
[]
[]
[]
[]
[null,null,null,null,null,null,null,null,null,null,"Onglet de la fiche"]
[null,null,null,null,null,null,null,null,null,null,"Accueil"]
[null,null,null,null,null,null,null,null,null,null,"Administration"]
[null,null,null,null,null,null,null,null,null,null,"Description"]
[null,null,null,null,null,null,null,null,null,null,"Détail des projets"]
[null,null,null,null,null,null,null,null,null,null,"GES"]
[null,null,null,null,null,null,null,null,null,null,"Adaptation"]
[null,null,null,null,null,null,null,null,null,null,"Indicateurs"]
[null,null,null,null,null,null,null,null,null,null,"Commentaires"]
[]
[]
[]
[]
[]
[]
[]
[]
[]
[]
[]
[]
[]
[]
[]
[]
[]
[]
[]
[]
[]
[]
[]
[]
[]
[]
[]
[]
[]
[]
[]
[]
[]
[]
[]
[]
[]
[]
[]
[]
[]
[]
[]
[]
[]
[]
[]
[]
[]
[]
[]
[]
[]
[]
[]
[]
[]
[]
[]
[]
[]
[]
[]
[]
[]
[]
[]
[]
[]
[]
[]
[]
[]
[]
[]
[]
[]
[]
[]
[]
[]
[]
[]
[]
[]
[]
[]
[]
[]
[]
[]
[]
[]
[]
[]
[]
[]
[]
[]
[]
[]
[]
[]
[]
[]
[]
[]
[]
[]
[]
[]
[]
[]
[]
[]
[]
[]
[]
[]
[]
[]
[]
[]
[]
[]
[]
[]
[]
[]
[]
[]
[]
[]
[]
[]
[]
[null,"ONGLET INDICATEURS: Liste des statuts de l'action"]
[null,null,"2013-2014","2014-2015","2015-2016","2016-2017","2017-2018","2018-2019","2019-2020","2020-2021","2021-2022","2022-2023","2023-2024","2024-2025","2025-2026","2026-2027","2027-2028","2026-2029"]
[null,"Valeurs actuelles",{"$f":"IF(C228=$G$7,IF(Accueil!$D$58<>$C$239,Accueil!$D$58,IF(ISBLANK(C230),B230,C230)),C230)","v":"non démarrée"},{"$f":"IF(D228=$G$7,IF(Accueil!$D$58<>$C$239,Accueil!$D$58,IF(ISBLANK(D230),C230,D230)),D230)","v":"non démarrée"},{"$f":"IF(E228=$G$7,IF(Accueil!$D$58<>$C$239,Accueil!$D$58,IF(ISBLANK(E230),D230,E230)),E230)","v":"non démarrée"},{"$f":"IF(F228=$G$7,IF(Accueil!$D$58<>$C$239,Accueil!$D$58,IF(ISBLANK(F230),E230,F230)),F230)","v":"non démarrée"},{"$f":"IF(G228=$G$7,IF(Accueil!$D$58<>$C$239,Accueil!$D$58,IF(ISBLANK(G230),F230,G230)),G230)","v":"non démarrée"},{"$f":"IF(H228=$G$7,IF(Accueil!$D$58<>$C$239,Accueil!$D$58,IF(ISBLANK(H230),G230,H230)),H230)","v":"non démarrée"},{"$f":"IF(I228=$G$7,IF(Accueil!$D$58<>$C$239,Accueil!$D$58,IF(ISBLANK(I230),H230,I230)),I230)","v":"non démarrée"},{"$f":"IF(J228=$G$7,IF(Accueil!$D$58<>$C$239,Accueil!$D$58,IF(ISBLANK(J230),I230,J230)),J230)","v":"non démarrée"},{"$f":"IF(K228=$G$7,IF(Accueil!$D$58<>$C$239,Accueil!$D$58,IF(ISBLANK(K230),J230,K230)),K230)","v":"non démarrée"},{"$f":"IF(L228=$G$7,IF(Accueil!$D$58<>$C$239,Accueil!$D$58,IF(ISBLANK(L230),K230,L230)),L230)","v":"en cours"},{"$f":"IF(M228=$G$7,IF(Accueil!$D$58<>$C$239,Accueil!$D$58,IF(ISBLANK(M230),L230,M230)),M230)","v":0},{"$f":"IF(N228=$G$7,IF(Accueil!$D$58<>$C$239,Accueil!$D$58,IF(ISBLANK(N230),M230,N230)),N230)","v":0},{"$f":"IF(O228=$G$7,IF(Accueil!$D$58<>$C$239,Accueil!$D$58,IF(ISBLANK(O230),N230,O230)),O230)","v":0},{"$f":"IF(P228=$G$7,IF(Accueil!$D$58<>$C$239,Accueil!$D$58,IF(ISBLANK(P230),O230,P230)),P230)","v":0},{"$f":"IF(Q228=$G$7,IF(Accueil!$D$58<>$C$239,Accueil!$D$58,IF(ISBLANK(Q230),P230,Q230)),Q230)","v":0},{"$f":"IF(R228=$G$7,IF(Accueil!$D$58<>$C$239,Accueil!$D$58,IF(ISBLANK(R230),Q230,R230)),R230)","v":0}]
[null,"Valeurs précédentes","non démarrée","non démarrée","non démarrée","non démarrée","non démarrée","non démarrée","non démarrée","non démarrée","non démarrée"]
[]
[]
[null,"IdStatutAction","codeStatutAction","valeurStatutAction","rangStatut"]
[null,1,{"$f":"I18","v":"non démarrée"},0,1]
[null,2,{"$f":"I19","v":"en élaboration"},0,2]
[null,3,"en cours",0.5,3]
[null,4,"terminée",1,4]
[null,5,"en suspens",0,5]
[null,6,"Retirée du PACC",0,6]

{"sheet":"Accueil","index":1,"n_rows":85,"n_cols":11,"rows_kept":85,"cut":false,"hidden":false,"merged":[[84,1,84,12],[1,4,2,12],[67,1,67,2],[57,1,57,2],[31,1,31,9],[66,3,66,6],[66,8,66,9],[66,1,66,2],[65,3,65,6],[53,4,53,11],[53,1,53,2],[55,3,55,11],[64,3,64,6],[65,10,65,11],[64,10,64,11],[57,3,57,11],[66,10,66,11],[65,1,65,2],[65,8,65,9],[62,3,62,4],[64,1,64,2],[62,1,62,2],[58,3,58,11],[64,8,64,9],[58,1,58,2],[30,1,30,12],[55,1,55,2],[31,10,31,12],[51,1,51,2],[52,1,52,2],[54,4,54,11],[51,4,51,11],[52,4,52,11],[56,1,56,2],[56,3,56,10],[49,1,49,12],[4,1,5,12],[54,1,54,2],[29,1,29,12],[24,1,24,12],[22,1,22,12],[9,1,9,12],[26,1,26,12],[21,1,21,12],[16,1,16,12],[14,1,14,12],[15,1,15,12],[23,1,23,12],[25,1,25,12],[18,1,18,12],[20,1,20,11],[17,1,17,12],[69,0,71,0],[68,1,68,12],[71,10,71,11],[69,1,69,2],[71,8,71,9],[70,1,70,2],[71,1,71,2],[71,3,71,6],[69,10,69,11],[70,8,70,9],[69,3,69,6],[70,3,70,6],[69,8,69,9],[70,10,70,11],[13,1,13,2],[13,3,13,4],[28,1,28,12],[85,1,87,12],[72,1,72,2],[74,3,74,11],[74,1,74,2],[73,1,73,2],[76,11,76,12],[67,3,67,6],[73,3,73,11],[67,8,67,9],[67,10,67,11],[72,3,72,6],[72,8,72,9],[72,10,72,11]]}
[]
[null,null,null,null,"EXERCICE DE SUIVI DU PLAN D'ACTION 2013-2020 SUR LES CHANGEMENTS CLIMATIQUES"]
[]
[]
[]
[]
[]
[]
[]
[null,"Bienvenue dans votre fiche de suivi du FECC - Gestion des matières résiduelles"]
[]
[]
[]
[null,"Échéance de transmission :",null,"2022-06-14"]
[null,"Nouveautés pour l’exercice de suivi de mai 2020 "]
[null,"RAPPEL :"]
[null,"* Fin du PACC : Les conventions de subventions se rapportant aux engagements saisis à SAGIR sont maintenant signées."]
[null,"* Fin du PACC : Les projets réalisés à l'interne dans vos organisations doivent se terminer avant le 31 décembre 2022"]
[null,"* Fin du PACC : Vous devez compléter l'onglet Évaluation."]
[null,"Consignes générales :"]
[null,"→Les informations doivent correspondre à l'avancement de l'action en date du 31 mars 2022."]
[null,"→Assurez-vous de valider votre fiche (onglet Validation) avant de la transmettre à l’adresse suivante :  suivi.climatique@environnement.gouv.qc.ca"]
[null,"→Toute information confidentielle doit être saisie en bleu."]
[null,"→Conservez la fiche en format xlsm afin de pouvoir profiter des outils conviviaux."]
[null,"→La plupart des cellules contenant du texte sont limitées à 250 caractères."]
[]
[null,"→Copier-coller des informations à partir d’un document Word verrouille les cellules concernées. Pour pouvoir à nouveau écrire et modifier le  format de ces cellules, fermez et ouvrez à nouveau la fiche."]
[]
[null,"→Besoin d’assistance? Écrivez-nous à l’adresse suivante en précisant votre question et vos coordonnées : suivi.climatique@environnement.gouv.qc.ca"]
[]
[]
[null,null,null,null,null,null,null,null,null,null,"suivi.climatique@environnement.gouv.qc.ca"]
[]
[]
[]
[]
[]
[]
[]
[]
[]
[]
[]
[]
[]
[]
[]
[]
[]
[null,"Veuillez vérifier, corriger et compléter les informations ci-dessous :"]
[]
[null,"Priorité :",null,"29","Actualiser les outils d'évaluation, de protection et de gestion de la biodiversité et des écosystèmes"]
[null,"Action :",null,"29.2","Protection et gestion de la biodiversité et des écosystèmes - Faune et écosystèmes"]
[null,"Sous-action :",null,"29.2.2","Adapter les outils de conservation de la faune aux changements climatiques: espèces menacées vulnérables (EMV) et espèces exotiques envahissantes (EEE)"]
[null,"Libellé usuel :",null,"29.2.2","Adapter les outils de conservation de la faune aux changements climatiques: espèces menacées vulnérables (EMV) et espèces exotiques envahissantes (EEE)"]
[null,"Programme :",null,"Non applicable"]
[null,"Nom du programme :"]
[null,"Statut de l’action :",null,"en cours"]
[null,"Raison du statut de l’action :"]
[]
[]
[]
[null,"Informations en date du :",null,{"$f":"Utilitaire!G6","v":"2022-03-31"}]
[]
[null,"Ministère porteur :",null,"MFFP",null,null,null,null,"Direction responsable :",null,"DEFTHA"]
[null,"Partenaires :",null,"Bureau d'écologie appliqué, Université McGill, différents organismes de conservation",null,null,null,null,"Part de financement par le FECC :",null,"Variable"]
[null,"Budget 2013-2020 (M$) :",null,1.415,null,null,null,null,"Autres sources de financement :",null,"Autre budget  MFFP - Plan Nord, Mesure budgétaire"]
[null,"Date de lancement de l’action :",null,"2013-04-01",null,null,null,null,"Date de fin de l’action :",null,"2025-12-01"]
[null,"Section réservée à l’usage exclusif du BECC (lignes 70 à 73 non publiées)"]
[null,"Chargé de projet :",null,"Anouk Simard",null,null,null,null,"Tél. :",null,"418-627-8694 poste 707383"]
[null,"Responsable ministériel :",null,"Antoine Nappi",null,null,null,null,"Tél. :",null,"418-627-8694 poste 707419"]
[null,"Personne ressource pour le BECC :",null,"Anouk Simard",null,null,null,null,"Tél. :",null,"418-627-8694 poste 707383"]
[null,"Estimation des sommes résiduelles au \n31 décembre 2020 ($) :",null,0,null,null,null,null,"Précisions sur le montant des sommes résiduelles :",null,"s"]
[null,"Téléphone pour informations :",null,"418-627-8694 poste 707383"]
[null,"Référence Web :",null,"S.O."]
[]
[]
[]
[]
[]
[]
[]
[]
[]
[null,"Ministère des Forêts, de la Faune et des Parcs"]

{"sheet":"Description","index":2,"n_rows":196,"n_cols":14,"rows_kept":196,"cut":false,"hidden":false,"merged":[[40,1,40,4],[40,5,40,8],[1,1,1,6],[18,1,18,2],[18,3,18,4],[18,5,18,14],[14,1,14,14],[15,1,15,2],[15,3,15,4],[15,5,15,14],[16,1,16,2],[16,3,16,4],[16,6,16,14],[17,1,17,2],[17,3,17,4],[17,6,17,14],[2,1,2,2],[3,2,3,6],[5,1,5,6],[1,8,1,9],[1,11,1,12],[1,13,1,14],[2,8,5,14],[4,1,4,2],[4,3,4,6],[53,2,53,6],[53,9,53,14],[41,1,41,14],[52,1,52,14],[53,7,53,8],[162,1,162,8],[162,9,162,11],[162,12,162,14],[158,1,158,8],[158,9,158,11],[158,12,158,14],[159,1,159,8],[159,9,159,11],[159,12,159,14],[156,1,156,8],[156,9,156,11],[156,12,156,14],[157,1,157,8],[157,9,157,11],[157,12,157,14],[154,1,154,8],[154,9,154,11],[154,12,154,14],[155,1,155,8],[163,1,163,8],[163,9,163,11],[163,12,163,14],[160,1,160,8],[160,9,160,11],[160,12,160,14],[161,1,161,8],[161,9,161,11],[161,12,161,14],[152,1,152,8],[152,9,152,11],[152,12,152,14],[153,1,153,8],[153,9,153,11],[153,12,153,14],[150,1,150,8],[150,9,150,11],[150,12,150,14],[151,1,151,8],[151,9,151,11],[151,12,151,14],[148,1,148,8],[148,9,148,11],[148,12,148,14],[149,1,149,8],[149,9,149,11],[149,12,149,14],[146,1,146,8],[146,9,146,11],[146,12,146,14],[147,1,147,8],[147,9,147,11],[147,12,147,14],[144,1,144,8],[144,9,144,11],[144,12,144,14],[145,1,145,8],[145,9,145,11],[145,12,145,14],[142,1,142,8],[142,9,142,11],[142,12,142,14],[143,1,143,8],[143,9,143,11],[143,12,143,14],[140,1,140,8],[140,9,140,11],[140,12,140,14],[141,1,141,8],[141,9,141,11],[141,12,141,14],[138,1,138,8],[138,9,138,11],[138,12,138,14],[139,1,139,8],[139,9,139,11],[139,12,139,14],[136,1,136,8],[136,9,136,11],[136,12,136,14],[137,1,137,8],[137,9,137,11],[137,12,137,14],[134,1,134,8],[134,9,134,11],[134,12,134,14],[135,1,135,8],[135,9,135,11],[135,12,135,14],[132,1,132,8],[132,9,132,11],[132,12,132,14],[133,1,133,8],[133,9,133,11],[133,12,133,14],[130,1,130,8],[130,9,130,11],[130,12,130,14],[131,1,131,8],[131,9,131,11],[131,12,131,14],[128,1,128,8],[128,9,128,11],[128,12,128,14],[129,1,129,8],[129,9,129,11],[129,12,129,14],[126,1,126,8],[126,9,126,11],[126,12,126,14],[127,1,127,8],[127,9,127,11],[127,12,127,14],[124,1,124,8],[124,9,124,11],[124,12,124,14],[125,1,125,8],[125,9,125,11],[125,12,125,14],[122,1,122,8],[122,9,122,11],[122,12,122,14],[123,1,123,8],[123,9,123,11],[123,12,123,14],[120,1,120,8],[120,9,120,11],[120,12,120,14],[121,1,121,8],[121,9,121,11],[121,12,121,14],[118,1,118,8],[118,9,118,11],[118,12,118,14],[119,1,119,8],[119,9,119,11],[119,12,119,14],[116,1,116,8],[116,9,116,11],[116,12,116,14],[117,1,117,8],[117,9,117,11],[117,12,117,14],[114,1,114,8],[114,9,114,11],[114,12,114,14],[115,1,115,8],[115,9,115,11],[115,12,115,14],[112,1,112,8],[112,9,112,11],[112,12,112,14],[113,1,113,8],[113,9,113,11],[113,12,113,14],[110,1,110,8],[110,9,110,11],[110,12,110,14],[111,1,111,8],[111,9,111,11],[111,12,111,14],[108,1,108,8],[108,9,108,11],[108,12,108,14],[109,1,109,8],[109,9,109,11],[109,12,109,14],[106,1,106,8],[106,9,106,11],[106,12,106,14],[107,1,107,8],[107,9,107,11],[107,12,107,14],[104,1,104,8],[104,9,104,11],[104,12,104,14],[105,1,105,8],[105,9,105,11],[105,12,105,14],[102,1,102,8],[102,9,102,11],[102,12,102,14],[103,1,103,8],[103,9,103,11],[103,12,103,14],[100,1,100,8],[100,9,100,11],[100,12,100,14],[101,1,101,8],[101,9,101,11],[101,12,101,14],[98,1,98,8],[98,9,98,11],[98,12,98,14],[99,1,99,8],[99,9,99,11],[99,12,99,14],[96,1,96,8],[96,9,96,11],[96,12,96,14],[97,1,97,8],[97,9,97,11],[97,12,97,14],[94,1,94,8],[94,9,94,11],[94,12,94,14],[95,1,95,8],[95,9,95,11],[95,12,95,14],[92,1,92,8],[92,9,92,11],[92,12,92,14],[93,1,93,8],[93,9,93,11],[93,12,93,14],[90,1,90,8],[90,9,90,11],[90,12,90,14],[91,1,91,8],[91,9,91,11],[91,12,91,14],[89,1,89,8],[89,9,89,11],[89,12,89,14],[86,1,86,8],[86,9,86,11],[86,12,86,14],[87,1,87,8],[87,9,87,11],[87,12,87,14],[85,1,85,8],[85,9,85,11],[85,12,85,14],[82,12,82,14],[83,1,83,8],[83,9,83,11],[83,12,83,14],[88,1,88,8],[88,9,88,11],[88,12,88,14],[81,1,81,8],[81,9,81,11],[81,12,81,14],[179,1,179,8],[179,9,179,11],[179,12,179,14],[176,1,176,8],[176,9,176,11],[176,12,176,14],[173,1,173,8],[173,9,173,11],[173,12,173,14],[174,1,174,8],[174,9,174,11],[174,12,174,14],[175,1,175,8],[175,9,175,11],[175,12,175,14],[171,1,171,8],[171,9,171,11],[171,12,171,14],[84,1,84,8],[84,9,84,11],[84,12,84,14],[180,1,180,8],[180,9,180,11],[180,12,180,14],[177,1,177,8],[177,9,177,11],[177,12,177,14],[178,1,178,8],[178,9,178,11],[178,12,178,14],[184,1,184,8],[184,9,184,11],[184,12,184,14],[181,1,181,8],[181,9,181,11],[181,12,181,14],[182,1,182,8],[182,9,182,11],[182,12,182,14],[183,1,183,8],[183,9,183,11],[183,12,183,14],[172,1,172,8],[172,9,172,11],[172,12,172,14],[169,1,169,8],[169,9,169,11],[169,12,169,14],[170,1,170,8],[170,9,170,11],[170,12,170,14],[167,1,167,8],[167,9,167,11],[167,12,167,14],[168,1,168,8],[168,9,168,11],[168,12,168,14],[165,1,165,8],[165,9,165,11],[165,12,165,14],[166,1,166,8],[166,9,166,11],[166,12,166,14],[164,1,164,8],[164,9,164,11],[164,12,164,14],[74,1,74,8],[74,9,74,11],[74,12,74,14],[75,1,75,8],[75,9,75,11],[75,12,75,14],[76,1,76,8],[76,9,76,11],[76,12,76,14],[77,1,77,8],[78,1,78,8],[78,9,78,11],[78,12,78,14],[79,1,79,8],[79,9,79,11],[79,12,79,14],[82,1,82,8],[82,9,82,11],[80,1,80,8],[80,9,80,11],[80,12,80,14],[70,1,70,8],[70,9,70,11],[70,12,70,14],[71,1,71,8],[71,9,71,11],[71,12,71,14],[73,1,73,8],[73,9,73,11],[73,12,73,14],[186,1,186,8],[187,1,187,8],[68,1,68,8],[68,9,68,11],[68,12,68,14],[69,1,69,8],[69,9,69,11],[69,12,69,14],[43,2,43,14],[46,2,46,14],[47,2,47,14],[48,2,48,14],[50,2,50,14],[67,1,67,8],[64,9,64,11],[65,9,65,11],[66,9,66,11],[63,12,63,14],[186,12,186,14],[187,12,187,14],[64,1,64,8],[65,1,65,8],[66,1,66,8],[72,1,72,8],[188,12,188,14],[63,9,63,11],[186,9,186,11],[187,9,187,11],[188,9,188,11],[67,12,67,14],[64,12,64,14],[65,12,65,14],[66,12,66,14],[77,9,77,11],[77,12,77,14],[67,9,67,11],[155,9,155,11],[155,12,155,14],[72,9,72,11],[72,12,72,14],[193,1,193,14],[49,2,49,14],[42,2,42,14],[44,1,45,1],[44,2,44,3],[44,4,44,5],[44,6,44,8],[44,9,44,11],[44,12,44,14],[45,2,45,3],[45,4,45,5],[45,6,45,8],[45,9,45,11],[45,12,45,14],[189,1,189,14],[188,1,188,8],[185,1,185,8],[185,9,185,11],[185,12,185,14],[61,1,61,14],[62,1,62,8],[62,9,62,11],[62,12,62,14],[63,1,63,8],[194,1,194,2],[201,1,201,2],[199,1,199,2],[198,1,198,2],[197,1,197,2],[196,1,196,2],[195,1,195,2],[196,13,196,14],[194,3,194,12],[194,13,194,14],[200,1,200,2],[200,3,200,12],[200,13,200,14],[201,3,201,12],[199,3,199,12],[198,3,198,12],[197,3,197,12],[196,3,196,12],[195,3,195,12],[201,13,201,14],[199,13,199,14],[198,13,198,14],[197,13,197,14],[195,13,195,14]]}
[]
[null,{"$f":"Utilitaire!E8","v":"Plan d'action 2013-2020 sur les changements climatiques"}]
[null,{"$f":"\"Action \" & Accueil!D58","v":"Action en cours"}]
[null,{"$f":"Accueil!D55","v":"29.2.2"},{"$f":"Accueil!E55","v":"Adapter les outils de conservation de la faune aux changements climatiques: espèces menacées vulnérables (EMV) et espèces exotiques envahissantes (EEE)"}]
[null,"Ministère porteur :",null,{"$f":"Accueil!$D$65","v":"MFFP"}]
[null,"Description"]
[]
[]
[]
[]
[]
[]
[]
[]
[null,"Évaluation des effets de la COVID-19 sur la mise en œuvre de l'action"]
[null,"Résultats attendus : "]
[null,"Échéancier : "]
[null,"Sommes engagées \n(projets en cours) :"]
[null,"Autres : "]
[]
[]
[]
[]
[]
[]
[]
[]
[]
[]
[]
[]
[]
[]
[]
[]
[]
[]
[]
[]
[]
[null,"Informations en date du :",null,null,null,"2022-03-31"]
[null,"Informations générales"]
[null,"Description de l'action: ","Parmi les composantes de la biodiversité, les espèces menacées et vulnérables (EMV) sont les plus susceptibles d'être affectées par les changements climatiques (CC), étant déjà exposées à plusieurs menaces. Par ailleurs, l'introduction d'espèces exotiques envahissantes (EEE) pourrait s'accélérer avec les CC, un risque additionnel pour la conservation. Le gouvernement souhaite anticiper l'effet des CC afin d'adopter des pratiques de gestion adéquates. \nA- Volet EMV: documenter la vulnérabilité des EMV face aux CC et concevoir des mesures d'adaptation. Les projets amélioreront notre compréhension des impacts qui pèsent sur les EMV et de leur capacité d'adaptation. Ce volet vise à susciter la collaboration des différents partenaires en conservation afin de mettre en place des mesures concrètes.\nB- Volet EEE : évaluer les risques d'introduction d'EEE fauniques liés aux changements climatiques et mettre en place des mesures permettant d'atténuer les impacts."]
[null,"Objectif de l'action:","A- Volet EMV: \n1) analyser la vulnérabilité des EMV aux CC; \n2) évaluer l'impact des CC sur l'hydrologie de certains habitats essentiels aux EMV; \n3) intégrer les enjeux des CC dans les plans de rétablissement;\n4) identifier et mettre en œuvre des mesures d'adaptation pour les EMV avec les organisations non gouvernementales (ONG); \n5) développer une approche potentielle multiespèce (filtre brut) pour la gestion des EMV facilitant l'adaptation aux CC;\n6) documenter les mesures d'adaptation potentielles, incluant la migration assistée. \n\nB- Volet EEE: \n1) analyser le risque d'introduction des EEE fauniques lié aux CC; \n2) améliorer des réseaux de surveillance pour les EEE; \n3) réaliser des actions de sensibilisation afin de limiter l'introduction et la propagation des EEE en fonction des CC;\n4) réaliser des actions pour le contrôle des EEE ou la restauration d'habitats fauniques affectés par les EEE."]
[null,"Bénéficiaires : ","Ministères et organismes gouvernementaux",null,"Citoyens",null,"Établissements de recherche",null,null,"Municipalités et organismes municipaux",null,null,"Organismes à but non lucratif"]
[null,null,"Autres (précisez) : "]
[null,"Critères d'admissibilité : ","Les projets admissibles doivent viser à identifier, évaluer et mieux comprendre les effets des CC sur les EMV et sur les EEE ainsi qu'à identifier et à mettre en œuvre des mesures concrètes d'adaptation. Les projets sont réalisés par le Secteur de la faune et des parcs du ministère des Forêts, de la Faune et des Parcs ou en collaboration avec des partenaires externes (ONG). Les projets sont réalisés sur la base critères tels que la pertinence de l'action comme mesure d'adaptation concrète, la vulnérabilité de l'espèce visée et la clarté des objectifs et des livrables attendus. L'identification des projets est réalisée par la direction responsable, soit la Direction de l'expertise sur la faune terrestre, l'herpétofaune et l'avifaune."]
[null,"Processus de suivi de l'action :","Le suivi des projets a lieu deux fois par année. De plus, un suivi budgétaire est effectué régulièrement. Chaque collaborateur doit fournir, en plus des livrables prévus, un fiche synthèse du projet effectué (indicateur de suivi pour chaque projet).  "]
[null,"Résultats et co-bénéfices attendus :","A- Volet EMV :\nA1) identifier les EMV les plus à risque face aux CC et aux menaces synergétiques;\nA2) améliorer les connaissances quant aux impacts des changements climatiques sur l'hydrologie de certains habitats essentiels pour les EMV (ex. rainette faux-grillon et salamandre);\nA3) intégrer les CC dans les plans de rétablissement;\nA4) réaliser des mesures d'adaptation concrètes sur les EMV en partenariat avec différents ONG;\nA5) améliorer la gestion des EMV par le développement d'une approche multiespèce facilitant l'adaptation;\nA6) documenter les mesures d'adaptation potentielles pour les EMV, incluant la migration assistée.  \n\nB - Volet EEE :\nB1) identifier le risque d'introduction d'EEE lié aux CC;\nB2) améliorer notre capacité à détecter les EEE par la surveillance;\nB3) diminuer les risques d'introduction et de propagation des EEE par des actions de sensibilisation (ex. : Nord);\nB4) restaurer les habitats affectés par les EEE afin de diminuer la vulnérabilité des EMV aux CC."]
[null,"Résultats et co-bénéfices obtenus dans la dernière année :","A1) Analyse de risque pour les EMV selon la méthode Nature Serve (en révision);\nA2) Hydrologie de l'habitat de la rainette faux-grillon (protocole de suivi) en developpement (nouveau contrat) et nouveau volet sur les salamandres des ruisseaux (nouveau contrat);\nA4) Adaptation EMV: 3 projets EMV et 1 projet EEE en 2020;\nA6) Publication d'un manuscrit sur la migration assitée dans le Naturaliste canadien;\nA6) Guide de mesures d'adaptation (en révision);\nB1) Revue des risques de différentes EEE et calculateur de risques selon différents scénarios climatiques;\nB2) Ligne directrice pour la migration assisté au Québec."]
[null,"Résultats et co-bénéfices obtenus depuis le lancement de l'action :","A1) Analyse de la vulnérabilité des EMV (partie 1);\nA2) Hydrologie de l'habitat de la rainette faux-grillon : analyse lidar, suivi des niveaux d'eau;\nA3) Intégration des CC dans les plans de rétablissement;\nA4) Adaptation EMV: multiples projets réalisés, chacun avec une fiche projet;\nA5) Analyse de menaces par habitat pour les EMV;\nA6) Évaluation des mesures d'adaptation (+/-) qui s'appliquent aux EMV: la migration assistée;\nB1) Identification des risques d'introduction d'EEE liés aux CC : sanglier et poissons d'aquarium;\nB2) Surveillance des EEE par ADN environnemental : développement de la méthode fleuve Saint-Laurent, suivi en eau intérieure;\nB3) Fiches Internet sur les EEE intégrant les CC et plan de communication limitant les EEE en régions nordiques;\nB4) Projet visant à réduire l'impact des plantes EEE dans l'habitat de la rainette faux-grillon."]
[]
[null,"Classification"]
[null,"Finalité :","Adaptation aux effets des changements climatiques",null,null,null,null,"Moyen :",null,"Innovation, recherche et développement"]
[]
[]
[]
[]
[]
[]
[]
[null,"Mise en œuvre "]
[null,"Étapes (depuis le début de l'action)",null,null,null,null,null,null,null,"Échéancier",null,null,"État d'avancement"]
[1,"A1. Évaluation de la vulnérabilité des EMV aux changements climatiques : premier volet en 2014-2017 et deuxième en 2019-2022",null,null,null,null,null,null,null,"2022-03-31",null,null,"Complétée"]
[2,"A2. Évaluation de l'impact des CC sur l'hydrologie de certains habitats essentiels pour les EMV : analyse globale (2015-2016), rainette faux-grillon (2016-2025) et salamandre (2019-2024)",null,null,null,null,null,null,null,"2025-03-31",null,null,"En cours"]
[3,"A3. Intégration des enjeux des CC dans les plans de rétablissement (selon le calendrier de publication des plans)",null,null,null,null,null,null,null,"2021-03-31",null,null,"Complétée"]
[4,"A4. Identification et mise en œuvre de mesures d'adaptation aux CC pour les EMV: divers projets de 2015 à 2021",null,null,null,null,null,null,null,"2021-03-31",null,null,"Complétée"]
[5,"A5. Développement d'une approche multiespèce pour la gestion des EMV qui faciliterait la prise en compte des CC (début de l'analyse 2016-2017; liens avec projet en cours sur l'approche intégrée de rétablissement)",null,null,null,null,null,null,null,"2023-03-31",null,null,"Complétée"]
[6,"A6. Documentation de certaines mesures d'adaptation: revue de littérature (2016-2017), guide général (2019-2020) et analyse de la migration assistée (2018-2020)",null,null,null,null,null,null,null,"2022-03-31",null,null,"Complétée"]
[null,"B1. Analyse des risques d'introduction des EEE fauniques liés aux CC (2015-2017) et évaluation des impacts possibles sur les EMV (2019-2020)",null,null,null,null,null,null,null,"2022-03-31",null,null,"Complétée"]
[8,"B2. Amélioration de la surveillance pour les EEE : test de la méthodologie par ADN environnemental dans le fleuve en 2015-2016, développement des amorces en 2016-2018 et surveillance de certains lacs en 2018-2020",null,null,null,null,null,null,null,"2021-03-31",null,null,"Complétée"]
[9,"B3. Réalisation d'actions de sensibilisation afin de limiter l'introduction et la propagation des EEE : fiches internet 2017-2018, fiches Sentinelles 2018-2020 et documents de sensibilisation 2018-2020",null,null,null,null,null,null,null,"2021-03-31",null,null,"Complétée"]
[null,"B4. Réalisation d'actions pour le contrôle ou la restauration d'habitats affectés par les EEE: projets divers de 2015 à 2021",null,null,null,null,null,null,null,"2021-03-31",null,null,"Complétée"]
[]
[]
[]
[]
[]
[]
[]
[]
[]
[]
[]
[]
[]
[]
[]
[]
[]
[]
[]
[]
[]
[]
[]
[]
[]
[]
[]
[]
[]
[]
[]
[]
[]
[]
[]
[]
[]
[]
[]
[]
[]
[]
[]
[]
[]
[]
[]
[]
[]
[]
[]
[]
[]
[]
[]
[]
[]
[]
[]
[]
[]
[]
[]
[]
[]
[]
[]
[]
[]
[]
[]
[]
[]
[]
[]
[]
[]
[]
[]
[]
[]
[]
[]
[]
[]
[]
[]
[]
[]
[]
[]
[]
[]
[]
[]
[]
[]
[]
[]
[]
[]
[]
[]
[]
[]
[]
[]
[]
[]
[]
[]
[]
[]
[]
[]
[]
[null,"Ajouter une ligne"]
[]
[]
[]
[null,"Plans, stratégies ou politiques incluant la mise en œuvre de cette action"]
[null,"Abréviation",null,"Nom complet",null,null,null,null,null,null,null,null,null,"Numéro de mesure"]
[null,"PACC 2013-2020",null,"Plan d'action 2013-2020 sur les changements climatiques",null,null,null,null,null,null,null,null,null,"29.2.2"]

{"sheet":"Détail des projets","index":3,"n_rows":55,"n_cols":28,"rows_kept":55,"cut":false,"hidden":false,"merged":[[14,1,14,4],[21,1,21,6],[22,2,23,2],[22,5,23,5],[52,1,52,4],[22,4,23,4],[22,1,23,1],[22,3,23,3],[51,1,51,9],[22,6,23,6],[22,7,23,7],[22,26,23,26],[18,3,18,5],[18,6,18,8],[22,10,23,10],[54,1,54,4],[53,1,53,4],[21,14,21,25],[22,13,23,13],[22,12,23,12],[1,1,1,6],[1,8,1,10],[1,25,1,27],[2,8,5,27],[1,22,1,24],[3,2,3,6],[2,1,2,2],[5,1,5,6],[4,2,4,6],[22,9,23,9],[22,8,23,8],[22,27,23,27],[22,11,23,11]]}
[]
[null,{"$f":"Utilitaire!E8","v":"Plan d'action 2013-2020 sur les changements climatiques"}]
[null,{"$f":"\"Action \" & Accueil!D58","v":"Action en cours"}]
[null,{"$f":"Accueil!D55","v":"29.2.2"},{"$f":"Accueil!E55","v":"Adapter les outils de conservation de la faune aux changements climatiques: espèces menacées vulnérables (EMV) et espèces exotiques envahissantes (EEE)"}]
[null,"Ministère porteur :",{"$f":"Accueil!$D$65","v":"MFFP"}]
[null,"Détails et prévisions des dépenses par projet"]
[]
[]
[]
[]
[]
[]
[]
[]
[]
[]
[]
[]
[null,null,null,"Informations en date du :",null,null,"2022-03-31"]
[]
[]
[null,"DÉTAILS DES PROJETS AUTORISÉS",null,null,null,null,null,null,null,null,null,null,null,null,"MONTANTS PROVENANT DU FECC ($)",null,null,null,null,null,null,null,null,null,null,null,{"$f":"MONTH(#REF!)","v":{"$error":"#REF!"}}]
["No","Nom du projet","Nom du requérant ou du bénéficiaire","Volet ou thématique","Catégorie","Nombre de projets","Région administrative","Municipalité","Statut","Classification du projet","Montant engagé ($)","Date de l'engagement","Date du dernier versement","Budget total du projet ($)","2013-2014","2014-2015","2015-2016","2016-2017","2017-2018","2018-2019","2019-2020","2020-2021","2021-2022","2022-2023","2023-2024","2024-2025","MONTANT DES DÉPENSES RÉELLES ($)","TOTAL DES DÉPENSES RÉELLES ET PRÉVUES ($)"]
[null,null,null,null,null,null,null,null,null,null,"(convention signée, contrat, lettre de confirmation du ministre ou de son représentant ou lettre d'octroi)",null,null,null,"Réel","Réel","Réel","Réel","Réel","Réel","Réel","Réel","Réel","Prévu","Prévu","Prévu"]
[1,"Analyse de risque et de  faisabilité de différentes mesures d'adaptation (ex. la migration assistée) pour les EMV","Bureau d'écologie appliqué (BEA)","EMV - 4 - Mesures d'adaptation","Biodiversité, écosystèmes et ressources naturelles",3,"03-Capitale-Nationale","Non-Applicable","AC-Actif","CP-Contrat service professionnel",{"$f":"SUM(O25:Z25)","v":34540},"2018-01-15","2021-03-31",{"$f":"SUM(O25:Z25)","v":34540},null,null,null,null,10000,9740,8000,600,6200,null,null,null,{"$f":"SUM(O25:W25)","v":34540},{"$f":"SUM(O25:Z25)","v":34540}]
[2,"Synthèse des études hydriques, analyse ruisseaux à salamandre","Centre de la science de la biodiversité du Québec, université Laval, CERFO.","EMV - 2 - Analyses en hydrologie","Biodiversité, écosystèmes et ressources naturelles",3,"03-Capitale-Nationale","Non-Applicable","AC-Actif","CP-Contrat service professionnel",101080,"2016-04-01","2023-03-31",101080,null,null,null,6080,null,null,null,30000,35000,15000,15000,null,{"$f":"SUM(O26:W26)","v":71080},{"$f":"SUM(O26:Z26)","v":101080}]
[3,"Production d'un guide des mesures d'adaptation pour la faune et  les espèces menacées ou vulnérables","Centre de la science de la biodiversité du Québec, BEA","EMV - 4 - Mesures d'adaptation","Biodiversité, écosystèmes et ressources naturelles",3,"03-Capitale-Nationale","Non-Applicable","AC-Actif","CP-Contrat service professionnel",49470,"2016-04-01","2021-03-31",49470,null,null,null,6080,25000,null,7200,4550,6640,null,null,null,{"$f":"SUM(O27:W27)","v":49470},{"$f":"SUM(O27:Z27)","v":49470}]
[4,"Améliorer la sensibilisation quant aux espèces exotiques envahissantes en lien avec les changements climatiques","Centre de la science de la biodiversité du Québec, FaunENord, contrats divers","EEE - 3 - Actions de sensibilisation","Biodiversité, écosystèmes et ressources naturelles",3,"99-toutes les régions","Non-Applicable","AC-Actif","CP-Contrat service professionnel",47545.03,"2016-04-01","2021-03-31",47545.03,null,null,null,4050,20515,517.89,11506.07,10956.07,null,null,null,null,{"$f":"SUM(O28:W28)","v":47545.03},{"$f":"SUM(O28:Z28)","v":47545.03}]
[5,"Réduire l'impact des espèces exotiques envahissantes dans l'habitat d'une espèce menacée pour une meilleure résilience aux CC","Nature Action Québec, Conservation de la nature","EEE - 4 - Restauration d'habitats ","Biodiversité, écosystèmes et ressources naturelles",5,"99-toutes les régions","Non-Applicable","AC-Actif","CP-Contrat service professionnel",62501,"2016-04-01","2021-03-31",62501,null,null,null,7000,9800,7600,18686,19415,null,null,null,null,62501,62501]
[6,"Incorporer les enjeux des changements climatiques dans les programmes de rétablissement des espèces menacées ou vulnérables","Service de la conservation de la biodiversité et des milieux humides,","EMV - 3 - Intégrer les enjeux de changements climatiques dans les plans de rétablissement","Biodiversité, écosystèmes et ressources naturelles",2,"99-toutes les régions","Non-Applicable","AC-Actif","PI-Projet à l'interne",18800,"2016-02-15","2021-03-31",18800,null,null,18800,null,null,null,null,null,null,null,null,null,18800,18800]
[7," Mise en place d'un réseau de surveillance des espèces exotiques envahissantes par ANDe","Université Laval","EEE - 2 - Amélioration des réseaux de surveillance","Biodiversité, écosystèmes et ressources naturelles",2,"99-toutes les régions","Non-Applicable","AC-Actif","CP-Contrat service professionnel",76848,"2015-11-01","2021-03-15",76848,null,null,26997,null,24467,17780,7604,0,null,null,null,null,76848,76848]
[8,"Évaluer la dynamique hydrique en vue d'aménager des étangs temporaires pour la rainette faux-grillon de l'Ouest","Géomont, MERN, Terraformex et Ciel et Terre, contrats divers, UdM","EMV - 2 - Analyses en hydrologie","Biodiversité, écosystèmes et ressources naturelles",2,"16-Montérégie","Non-Applicable","AC-Actif","CP-Contrat service professionnel",139327.78,"2015-04-01","2025-12-01",139327.78,null,null,15497,17563,null,null,31267.78,9500,26000,9000,9000,21500,99827.78,139327.78]
[9,"Divers projets visant la mise en œuvre de mesures concrètes pour réduire la vulnérabilité des espèces menacées ou vulnérables aux changements climatiques","Service de la conservation de la biodiversité et des milieux humides ainsi que divers partenaires","EMV - 4 - Mesures d'adaptation","Biodiversité, écosystèmes et ressources naturelles",28,"99-toutes les régions","Non-Applicable","AC-Actif","CP-Contrat service professionnel",287483.19999999995,"2015-04-01","2023-03-31",287483.19999999995,null,null,9400,47240.09,39054.660000000003,62325,50908.36,68555.09,6500,3500,null,null,283983.19999999995,287483.19999999995]
[10,"Analyse des vulnérabilités des espèces menacées ou vulnérables et analyse de niche","Centre de la science de la biodiversité du Québec, bureau d'écologie appliqué, Université de Sherbrooke","EMV - 1 - Analyse de vulnérabilité ","Biodiversité, écosystèmes et ressources naturelles",2,"99-toutes les régions","Non-Applicable","TE-Terminé","CP-Contrat service professionnel",121234,"2015-02-20","2022-03-31",121234,null,null,28084,null,25000,null,17250,32000,18900,null,null,null,121234,121234]
[11,"Développement d'une approche multiespèces (filtre brut) pour la gestion des espèces menacées ou vulnérables incluant une modélisation du territoire de la résilience au CC et connectivité.","Centre de la science de la biodiversité du Québec, Université Laval, IRDA","EMV - 5- Approche multiespèces","Biodiversité, écosystèmes et ressources naturelles",3,"99-toutes les régions","Non-Applicable","TE-Terminé","CP-Contrat service professionnel",106748.17,"2015-02-20","2022-03-31",106748.17,null,null,26900,29230,null,null,null,39618.17,5000,6000,null,null,100748.17,106748.17]
[12,"Analyse de risque d'établissement et de dispersion d'espèces exotiques envahissantes dans un climat futur","Centre de la science de la biodiversité du Québec, Bureau d'écologie appliqué","EEE - 1 - Analyses des risques d'introduction d'espèces exotiques envahissantes","Biodiversité, écosystèmes et ressources naturelles",3,"99-toutes les régions","Non-Applicable","TE-Terminé","CP-Contrat service professionnel",30065,"2015-02-20","2021-03-31",30065,null,null,9340,null,null,null,9400,7500,3825,null,null,null,30065,30065]
[13,"Coordination des actions pour adapter les espèces menacées ou vulnérables aux changements climatiques  (rémunération)","Service de conservation de la biodiversité et des milieux humides","Espèces menacées ou vulnérables","Biodiversité, écosystèmes et ressources naturelles",1,"03-Capitale-Nationale","Non-Applicable","AC-Actif","PI-Projet à l'interne",205479.39,"2013-04-01","2021-03-31",205479.39,14000,27000,17000,10000,17000,35000.01,41382.620000000003,39156,4940.76,null,null,null,205479.39,205479.39]
[14,"Coordination des actions pour minimiser l'impact des espèces exotiques envahissantes (rémunération)","Service de la conservation de la biodiversité et des milieux humides","Espèces exotiques envahissantes","Biodiversité, écosystèmes et ressources naturelles",1,"03-Capitale-Nationale","Non-Applicable","AC-Actif","PI-Projet à l'interne",72095,"2013-04-01","2021-03-31",72095,14100,26995,16000,null,5000,5000,5000,null,null,null,null,null,72095,72095]
[15,"Évaluer la dynamique hydrique en vue d'aménager des étangs temporaires pour la rainette faux-grillon de l'Ouest- Achat de matériel","Service de conservation de la biodiversité et des milieux humides","EMV - 2 - Analyses en hydrologie","Biodiversité, écosystèmes et ressources naturelles",2,"99-toutes les régions","Non-Applicable","AC-Actif","PI-Projet à l'interne",46158.8,"2017-04-01","2021-03-31",46158.8,null,null,null,null,15017.5,15933.96,null,15207.34,null,null,null,null,46158.8,46158.8]
[16,"Évaluation de la persistance de la petite corbeille d'Asie dans le Saint-Laurent","Direction de la faune aquatique, Laboratoire SAB","EEE - 2 - Amélioration des réseaux de surveillance","Biodiversité, écosystèmes et ressources naturelles",1,"03-Capitale-Nationale","Non-Applicable","AC-Actif","CF-Contrat fonctionnement",5133.1499999999996,"2018-11-15","2021-03-31",5133.1499999999996,null,null,null,null,null,5133.1499999999996,null,null,null,null,null,null,5133.1499999999996,5133.1499999999996]
[17,null,null,null,null,null,null,null,null,null,null,null,null,null,null,null,null,null,null,null,null,null,null,null,null,null,0,0]
[18,null,null,null,null,null,null,null,null,null,null,null,null,null,null,null,null,null,null,null,null,null,null,null,null,null,0,0]
[19,null,null,null,null,null,null,null,null,null,null,null,null,null,null,null,null,null,null,null,null,null,null,null,null,null,0,{"$f":"SUM(O43:Z43)","v":0}]
[20,null,null,null,null,null,null,null,null,null,null,null,null,null,null,null,null,null,null,null,null,null,null,null,null,null,0,{"$f":"SUM(O44:Z44)","v":0}]
[21,null,null,null,null,null,null,null,null,null,null,null,null,null,null,null,null,null,null,null,null,null,null,null,null,null,0,{"$f":"SUM(O45:Z45)","v":0}]
[22,null,null,null,null,null,null,null,null,null,null,null,null,null,null,null,null,null,null,null,null,null,null,null,null,null,0,{"$f":"SUM(O46:Z46)","v":0}]
[23,null,null,null,null,null,null,null,null,null,null,null,null,null,null,null,null,null,null,null,null,null,null,null,null,null,0,{"$f":"SUM(O47:Z47)","v":0}]
[24,null,null,null,null,null,null,null,null,null,null,null,null,null,null,null,null,null,null,null,null,null,null,null,null,null,0,{"$f":"SUM(O48:Z48)","v":0}]
[25,null,null,null,null,null,null,null,null,null,null,null,null,null,null,null,null,null,null,null,null,null,null,null,null,null,0,{"$f":"SUM(O49:Z49)","v":0}]
[26,null,null,null,null,null,null,null,null,null,null,null,null,null,null,null,null,null,null,null,null,null,null,null,null,null,0,{"$f":"SUM(O50:Z50)","v":0}]
[27,null,null,null,null,null,null,null,null,null,null,null,null,null,null,null,null,null,null,null,null,null,null,null,null,null,0,{"$f":"SUM(O51:Z51)","v":0}]
[null,"TOTAL DES DÉPENSES DE PROJET ($)",null,null,null,null,null,null,null,null,{"$f":"SUM(K25:K51)","v":1404508.5200000003},null,null,{"$f":"SUM(N25:N51)","v":1404508.5200000003},28100,53995,168018,127243.09,190854.16,159030.00999999998,208204.83000000002,277057.67000000004,113005.75999999999,33500,24000,21500,1325508.52,1404508.5200000003]
[null,"TOTAL CONTRATS FONCTIONNEMENT ($)",null,null,null,null,null,null,null,null,{"$f":"SUMIF($J$25:$J37,\"CF-Contrat fonctionnement\",K25:K37)+SUMIF($J$25:$J37,\"CP-Contrat service professionnel\",K25:K37)+SUMIF($J$25:$J37,\"CT-Contrat service technique\",K25:K37)","v":1056842.1800000002},null,null,null,{"$f":"SUMIF($J$25:$J37,\"CF-Contrat fonctionnement\",O25:O37)+SUMIF($J$25:$J37,\"CP-Contrat service professionnel\",O25:O37)+SUMIF($J$25:$J37,\"CT-Contrat service technique\",O25:O37)","v":0},{"$f":"SUMIF($J$25:$J37,\"CF-Contrat fonctionnement\",P25:P37)+SUMIF($J$25:$J37,\"CP-Contrat service professionnel\",P25:P37)+SUMIF($J$25:$J37,\"CT-Contrat service technique\",P25:P37)","v":0},{"$f":"SUMIF($J$25:$J37,\"CF-Contrat fonctionnement\",Q25:Q37)+SUMIF($J$25:$J37,\"CP-Contrat service professionnel\",Q25:Q37)+SUMIF($J$25:$J37,\"CT-Contrat service technique\",Q25:Q37)","v":116218},{"$f":"SUMIF($J$25:$J37,\"CF-Contrat fonctionnement\",R25:R37)+SUMIF($J$25:$J37,\"CP-Contrat service professionnel\",R25:R37)+SUMIF($J$25:$J37,\"CT-Contrat service technique\",R25:R37)","v":117243.09},{"$f":"SUMIF($J$25:$J37,\"CF-Contrat fonctionnement\",S25:S37)+SUMIF($J$25:$J37,\"CP-Contrat service professionnel\",S25:S37)+SUMIF($J$25:$J37,\"CT-Contrat service technique\",S25:S37)","v":153836.66},{"$f":"SUMIF($J$25:$J37,\"CF-Contrat fonctionnement\",T25:T37)+SUMIF($J$25:$J37,\"CP-Contrat service professionnel\",T25:T37)+SUMIF($J$25:$J37,\"CT-Contrat service technique\",T25:T37)","v":97962.89},{"$f":"SUMIF($J$25:$J37,\"CF-Contrat fonctionnement\",U25:U37)+SUMIF($J$25:$J37,\"CP-Contrat service professionnel\",U25:U37)+SUMIF($J$25:$J37,\"CT-Contrat service technique\",U25:U37)","v":161822.21000000002},{"$f":"SUMIF($J$25:$J37,\"CF-Contrat fonctionnement\",V25:V37)+SUMIF($J$25:$J37,\"CP-Contrat service professionnel\",V25:V37)+SUMIF($J$25:$J37,\"CT-Contrat service technique\",V25:V37)","v":222694.33000000002},{"$f":"SUMIF($J$25:$J37,\"CF-Contrat fonctionnement\",W25:W37)+SUMIF($J$25:$J37,\"CP-Contrat service professionnel\",W25:W37)+SUMIF($J$25:$J37,\"CT-Contrat service technique\",W25:W37)","v":108065},{"$f":"SUMIF($J$25:$J37,\"CF-Contrat fonctionnement\",X25:X37)+SUMIF($J$25:$J37,\"CP-Contrat service professionnel\",X25:X37)+SUMIF($J$25:$J37,\"CT-Contrat service technique\",X25:X37)","v":33500},{"$f":"SUMIF($J$25:$J37,\"CF-Contrat fonctionnement\",Y25:Y37)+SUMIF($J$25:$J37,\"CP-Contrat service professionnel\",Y25:Y37)+SUMIF($J$25:$J37,\"CT-Contrat service technique\",Y25:Y37)","v":24000},null,{"$f":"SUMIF($J$25:$J37,\"CF-Contrat fonctionnement\",AA25:AA37)+SUMIF($J$25:$J37,\"CP-Contrat service professionnel\",AA25:AA37)+SUMIF($J$25:$J37,\"CT-Contrat service technique\",AA25:AA37)","v":977842.18},{"$f":"SUMIF($J$25:$J37,\"CF-Contrat fonctionnement\",AB25:AB37)+SUMIF($J$25:$J37,\"CP-Contrat service professionnel\",AB25:AB37)+SUMIF($J$25:$J37,\"CT-Contrat service technique\",AB25:AB37)","v":1056842.1800000002}]
[null,"TOTAL CONTRATS IMMOBILISATION ($)",null,null,null,null,null,null,null,null,{"$f":"SUMIF(J25:J37,\"CI-Contrat immobilisation\",K25:K37)","v":0},null,null,null,{"$f":"SUMIF($J$25:$J37,\"CI-Contrat immobilisation\",O25:O37)","v":0},{"$f":"SUMIF($J$25:$J37,\"CI-Contrat immobilisation\",P25:P37)","v":0},{"$f":"SUMIF($J$25:$J37,\"CI-Contrat immobilisation\",Q25:Q37)","v":0},{"$f":"SUMIF($J$25:$J37,\"CI-Contrat immobilisation\",R25:R37)","v":0},{"$f":"SUMIF($J$25:$J37,\"CI-Contrat immobilisation\",S25:S37)","v":0},{"$f":"SUMIF($J$25:$J37,\"CI-Contrat immobilisation\",T25:T37)","v":0},{"$f":"SUMIF($J$25:$J37,\"CI-Contrat immobilisation\",U25:U37)","v":0},{"$f":"SUMIF($J$25:$J37,\"CI-Contrat immobilisation\",V25:V37)","v":0},{"$f":"SUMIF($J$25:$J37,\"CI-Contrat immobilisation\",W25:W37)","v":0},{"$f":"SUMIF($J$25:$J37,\"CI-Contrat immobilisation\",X25:X37)","v":0},{"$f":"SUMIF($J$25:$J37,\"CI-Contrat immobilisation\",Y25:Y37)","v":0},null,{"$f":"SUMIF($J$25:$J37,\"CI-Contrat immobilisation\",AA25:AA37)","v":0},{"$f":"SUMIF($J$25:$J37,\"CI-Contrat immobilisation\",AB25:AB37)","v":0}]
[null,"TOTAL DES SUBVENTIONS ($)",null,null,null,null,null,null,null,null,{"$f":"SUMIF(J25:J37,\"SU-Subvention\",K25:K37)","v":0},null,null,null,{"$f":"SUMIF($J$25:$J54,\"SU-Subvention\",O25:O27)","v":0},{"$f":"SUMIF($J$25:$J54,\"SU-Subvention\",P25:P27)","v":0},{"$f":"SUMIF($J$25:$J54,\"SU-Subvention\",Q25:Q27)","v":0},{"$f":"SUMIF($J$25:$J54,\"SU-Subvention\",R25:R27)","v":0},{"$f":"SUMIF($J$25:$J54,\"SU-Subvention\",S25:S27)","v":0},{"$f":"SUMIF($J$25:$J54,\"SU-Subvention\",T25:T27)","v":0},{"$f":"SUMIF($J$25:$J54,\"SU-Subvention\",U25:U27)","v":0},{"$f":"SUMIF($J$25:$J54,\"SU-Subvention\",V25:V27)","v":0},{"$f":"SUMIF($J$25:$J54,\"SU-Subvention\",W25:W27)","v":0},{"$f":"SUMIF($J$25:$J54,\"SU-Subvention\",X25:X27)","v":0},{"$f":"SUMIF($J$25:$J54,\"SU-Subvention\",Y25:Y27)","v":0},null,{"$f":"SUMIF($J$25:$J54,\"SU-Subvention\",AA25:AA27)","v":0},{"$f":"SUMIF($J$25:$J54,\"SU-Subvention\",AB25:AB27)","v":0}]

{"sheet":"GES","index":4,"n_rows":52,"n_cols":39,"rows_kept":52,"cut":false,"hidden":true,"merged":[[21,5,21,6],[21,7,21,37],[22,29,22,30],[22,31,22,32],[22,33,22,34],[22,35,22,36],[22,37,22,38],[22,27,22,28],[22,21,22,22],[22,23,22,24],[22,25,22,26],[22,8,23,8],[22,6,23,6],[22,9,23,9],[22,11,22,12],[22,13,22,14],[22,1,23,1],[22,2,23,2],[22,3,23,3],[22,19,22,20],[51,1,51,4],[22,4,23,4],[22,15,22,16],[22,17,22,18],[19,14,19,16],[1,14,1,16],[1,1,1,6],[2,1,2,2],[3,2,3,6],[1,11,1,13],[2,8,5,16],[4,2,4,6],[19,8,19,13],[19,1,19,5],[5,1,5,6],[1,8,1,10]]}
[]
[null,{"$f":"Utilitaire!E8","v":"Plan d'action 2013-2020 sur les changements climatiques"},null,null,null,null,null,null,"Conseils de rédaction : ",null,null,"Informations en date du :",null,null,{"$f":"Utilitaire!G6","v":"2022-03-31"}]
[null,{"$f":"\"Action \" & Accueil!D58","v":"Action en cours"},null,null,null,null,null,null," - Répondez aux questions et commentaires s'il y a lieu.\n\n- Des précisions sur les contenus attendus sont disponibles en commentaires dans les cellules titres.\n\n- Pensez à remplir les cases G20 et P20.\n\n- Les projets inscrits sont ceux définis dans l'onglet « Détail des projets ».\n\n- Pensez à inscrire le coût par tonne de la colonne H, même si seul un potentiel de réduction est inclus pour cette action."]
[null,{"$f":"Accueil!D55","v":"29.2.2"},{"$f":"Accueil!E55","v":"Adapter les outils de conservation de la faune aux changements climatiques: espèces menacées vulnérables (EMV) et espèces exotiques envahissantes (EEE)"}]
[null,"Ministère porteur :",{"$f":"Accueil!$D$65","v":"MFFP"}]
[null,"GES"]
[]
[]
[]
[]
[]
[]
[]
[]
[]
[]
[]
[]
[]
[null,"Potentiel de réduction des GES évalué lors de la sélection des projets de cette action : ",null,null,null,null,"Non",null,"Réductions réelles quantifiables des émissions de GES attendues pour cette action :   ",null,null,null,null,null,"Non"]
[]
[null,null,null,null,null,"ÉVALUATION DU POTENTIEL DE RÉDUCTION ET D'ÉVITEMENT D'ÉMISSIONS DE GES À TERME.",null,"DÉTAIL DES ÉMISSIONS DE GES RÉDUITES OU ÉVITÉES  (en tonnes éq. CO2)"]
[null,"Nom du projet","Nom du requérant ou du bénéficiaire","Région administrative","Montant engagé ($)","Potentiel de réduction des GES sur une base annuelle","Horizon temporel pour la réalisation du potentiel","Coût/tonne estimé","Type d'émission","Émissions rapportées dans l'inventaire","Durée du projet","Émissions",null,"Vérifiées",null,"2013-2014",null,"2014-2015",null,"2015-2016",null,"2016-2017",null,"2017-2018",null,"2018-2019",null,"2019-2020",null,"2020-2021",null,"2021-2022",null,"2022-2023",null,"2023-2024",null,"2024-2025"]
[null,null,null,null,null,"(tonnes éq. CO2)",null,"$\n------------ \ntonne éq. CO2",null,null,"(années)","Réduites","Évitées","Tierce partie","M/O","Vérifié","Non vérifié","Vérifié","Non vérifié","Vérifié","Non vérifié","Vérifié","Non vérifié","Vérifié","Non vérifié","Vérifié","Non vérifié","Vérifié","Non vérifié","Vérifié","Non vérifié","Vérifié","Non vérifié","Vérifié","Non vérifié","Vérifié","Non vérifié","Vérifié","Non vérifié"]
[null,{"$f":"IF(LEN('Détail des projets'!B25)=0,\"\",'Détail des projets'!B25)","v":"Analyse de risque et de  faisabilité de différentes mesures d'adaptation (ex. la migration assistée) pour les EMV"},{"$f":"'Détail des projets'!C25","v":"Bureau d'écologie appliqué (BEA)"},{"$f":"IF(LEN('Détail des projets'!G25)=0,\"\",'Détail des projets'!G25)","v":"03-Capitale-Nationale"},{"$f":"IF(LEN('Détail des projets'!K25)=0,\"\",'Détail des projets'!K25)","v":34540}]
[null,{"$f":"IF(LEN('Détail des projets'!B26)=0,\"\",'Détail des projets'!B26)","v":"Synthèse des études hydriques, analyse ruisseaux à salamandre"},{"$f":"IF(LEN('Détail des projets'!C26)=0,\"\",'Détail des projets'!C26)","v":"Centre de la science de la biodiversité du Québec, université Laval, CERFO."},{"$f":"IF(LEN('Détail des projets'!G26)=0,\"\",'Détail des projets'!G26)","v":"03-Capitale-Nationale"},{"$f":"IF(LEN('Détail des projets'!K26)=0,\"\",'Détail des projets'!K26)","v":101080}]
[null,{"$f":"IF(LEN('Détail des projets'!B27)=0,\"\",'Détail des projets'!B27)","v":"Production d'un guide des mesures d'adaptation pour la faune et  les espèces menacées ou vulnérables"},{"$f":"IF(LEN('Détail des projets'!C27)=0,\"\",'Détail des projets'!C27)","v":"Centre de la science de la biodiversité du Québec, BEA"},{"$f":"IF(LEN('Détail des projets'!G27)=0,\"\",'Détail des projets'!G27)","v":"03-Capitale-Nationale"},{"$f":"IF(LEN('Détail des projets'!K27)=0,\"\",'Détail des projets'!K27)","v":49470}]
[null,{"$f":"IF(LEN('Détail des projets'!B28)=0,\"\",'Détail des projets'!B28)","v":"Améliorer la sensibilisation quant aux espèces exotiques envahissantes en lien avec les changements climatiques"},{"$f":"IF(LEN('Détail des projets'!C28)=0,\"\",'Détail des projets'!C28)","v":"Centre de la science de la biodiversité du Québec, FaunENord, contrats divers"},{"$f":"IF(LEN('Détail des projets'!G28)=0,\"\",'Détail des projets'!G28)","v":"99-toutes les régions"},{"$f":"IF(LEN('Détail des projets'!K28)=0,\"\",'Détail des projets'!K28)","v":47545.03}]
[null,{"$f":"IF(LEN('Détail des projets'!B29)=0,\"\",'Détail des projets'!B29)","v":"Réduire l'impact des espèces exotiques envahissantes dans l'habitat d'une espèce menacée pour une meilleure résilience aux CC"},{"$f":"IF(LEN('Détail des projets'!C29)=0,\"\",'Détail des projets'!C29)","v":"Nature Action Québec, Conservation de la nature"},{"$f":"IF(LEN('Détail des projets'!G29)=0,\"\",'Détail des projets'!G29)","v":"99-toutes les régions"},{"$f":"IF(LEN('Détail des projets'!K29)=0,\"\",'Détail des projets'!K29)","v":62501}]
[null,{"$f":"IF(LEN('Détail des projets'!B30)=0,\"\",'Détail des projets'!B30)","v":"Incorporer les enjeux des changements climatiques dans les programmes de rétablissement des espèces menacées ou vulnérables"},{"$f":"IF(LEN('Détail des projets'!C30)=0,\"\",'Détail des projets'!C30)","v":"Service de la conservation de la biodiversité et des milieux humides,"},{"$f":"IF(LEN('Détail des projets'!G30)=0,\"\",'Détail des projets'!G30)","v":"99-toutes les régions"},{"$f":"IF(LEN('Détail des projets'!K30)=0,\"\",'Détail des projets'!K30)","v":18800}]
[null,{"$f":"IF(LEN('Détail des projets'!B31)=0,\"\",'Détail des projets'!B31)","v":" Mise en place d'un réseau de surveillance des espèces exotiques envahissantes par ANDe"},{"$f":"IF(LEN('Détail des projets'!C31)=0,\"\",'Détail des projets'!C31)","v":"Université Laval"},{"$f":"IF(LEN('Détail des projets'!G31)=0,\"\",'Détail des projets'!G31)","v":"99-toutes les régions"},{"$f":"IF(LEN('Détail des projets'!K31)=0,\"\",'Détail des projets'!K31)","v":76848}]
[null,{"$f":"IF(LEN('Détail des projets'!B32)=0,\"\",'Détail des projets'!B32)","v":"Évaluer la dynamique hydrique en vue d'aménager des étangs temporaires pour la rainette faux-grillon de l'Ouest"},{"$f":"IF(LEN('Détail des projets'!C32)=0,\"\",'Détail des projets'!C32)","v":"Géomont, MERN, Terraformex et Ciel et Terre, contrats divers, UdM"},{"$f":"IF(LEN('Détail des projets'!G32)=0,\"\",'Détail des projets'!G32)","v":"16-Montérégie"},{"$f":"IF(LEN('Détail des projets'!K32)=0,\"\",'Détail des projets'!K32)","v":139327.78}]
[null,{"$f":"IF(LEN('Détail des projets'!B33)=0,\"\",'Détail des projets'!B33)","v":"Divers projets visant la mise en œuvre de mesures concrètes pour réduire la vulnérabilité des espèces menacées ou vulnérables aux changements climatiques"},{"$f":"IF(LEN('Détail des projets'!C33)=0,\"\",'Détail des projets'!C33)","v":"Service de la conservation de la biodiversité et des milieux humides ainsi que divers partenaires"},{"$f":"IF(LEN('Détail des projets'!G33)=0,\"\",'Détail des projets'!G33)","v":"99-toutes les régions"},{"$f":"IF(LEN('Détail des projets'!K33)=0,\"\",'Détail des projets'!K33)","v":287483.19999999995}]
[null,{"$f":"IF(LEN('Détail des projets'!B34)=0,\"\",'Détail des projets'!B34)","v":"Analyse des vulnérabilités des espèces menacées ou vulnérables et analyse de niche"},{"$f":"IF(LEN('Détail des projets'!C34)=0,\"\",'Détail des projets'!C34)","v":"Centre de la science de la biodiversité du Québec, bureau d'écologie appliqué, Université de Sherbrooke"},{"$f":"IF(LEN('Détail des projets'!G34)=0,\"\",'Détail des projets'!G34)","v":"99-toutes les régions"},{"$f":"IF(LEN('Détail des projets'!K34)=0,\"\",'Détail des projets'!K34)","v":121234}]
[null,{"$f":"IF(LEN('Détail des projets'!B35)=0,\"\",'Détail des projets'!B35)","v":"Développement d'une approche multiespèces (filtre brut) pour la gestion des espèces menacées ou vulnérables incluant une modélisation du territoire de la résilience au CC et connectivité."},{"$f":"IF(LEN('Détail des projets'!C35)=0,\"\",'Détail des projets'!C35)","v":"Centre de la science de la biodiversité du Québec, Université Laval, IRDA"},{"$f":"IF(LEN('Détail des projets'!G35)=0,\"\",'Détail des projets'!G35)","v":"99-toutes les régions"},{"$f":"IF(LEN('Détail des projets'!K35)=0,\"\",'Détail des projets'!K35)","v":106748.17}]
[null,{"$f":"IF(LEN('Détail des projets'!B36)=0,\"\",'Détail des projets'!B36)","v":"Analyse de risque d'établissement et de dispersion d'espèces exotiques envahissantes dans un climat futur"},{"$f":"IF(LEN('Détail des projets'!C36)=0,\"\",'Détail des projets'!C36)","v":"Centre de la science de la biodiversité du Québec, Bureau d'écologie appliqué"},{"$f":"IF(LEN('Détail des projets'!G36)=0,\"\",'Détail des projets'!G36)","v":"99-toutes les régions"},{"$f":"IF(LEN('Détail des projets'!K36)=0,\"\",'Détail des projets'!K36)","v":30065}]
[null,{"$f":"IF(LEN('Détail des projets'!B37)=0,\"\",'Détail des projets'!B37)","v":"Coordination des actions pour adapter les espèces menacées ou vulnérables aux changements climatiques  (rémunération)"},{"$f":"IF(LEN('Détail des projets'!C37)=0,\"\",'Détail des projets'!C37)","v":"Service de conservation de la biodiversité et des milieux humides"},{"$f":"IF(LEN('Détail des projets'!G37)=0,\"\",'Détail des projets'!G37)","v":"03-Capitale-Nationale"},{"$f":"IF(LEN('Détail des projets'!K37)=0,\"\",'Détail des projets'!K37)","v":205479.39}]
[null,{"$f":"IF(LEN('Détail des projets'!B38)=0,\"\",'Détail des projets'!B38)","v":"Coordination des actions pour minimiser l'impact des espèces exotiques envahissantes (rémunération)"},{"$f":"IF(LEN('Détail des projets'!C38)=0,\"\",'Détail des projets'!C38)","v":"Service de la conservation de la biodiversité et des milieux humides"},{"$f":"IF(LEN('Détail des projets'!G38)=0,\"\",'Détail des projets'!G38)","v":"03-Capitale-Nationale"},{"$f":"IF(LEN('Détail des projets'!K38)=0,\"\",'Détail des projets'!K38)","v":72095}]
[null,{"$f":"IF(LEN('Détail des projets'!B39)=0,\"\",'Détail des projets'!B39)","v":"Évaluer la dynamique hydrique en vue d'aménager des étangs temporaires pour la rainette faux-grillon de l'Ouest- Achat de matériel"},{"$f":"IF(LEN('Détail des projets'!C39)=0,\"\",'Détail des projets'!C39)","v":"Service de conservation de la biodiversité et des milieux humides"},{"$f":"IF(LEN('Détail des projets'!G39)=0,\"\",'Détail des projets'!G39)","v":"99-toutes les régions"},{"$f":"IF(LEN('Détail des projets'!K39)=0,\"\",'Détail des projets'!K39)","v":46158.8}]
[null,{"$f":"IF(LEN('Détail des projets'!B40)=0,\"\",'Détail des projets'!B40)","v":"Évaluation de la persistance de la petite corbeille d'Asie dans le Saint-Laurent"},{"$f":"IF(LEN('Détail des projets'!C40)=0,\"\",'Détail des projets'!C40)","v":"Direction de la faune aquatique, Laboratoire SAB"},{"$f":"IF(LEN('Détail des projets'!G40)=0,\"\",'Détail des projets'!G40)","v":"03-Capitale-Nationale"},{"$f":"IF(LEN('Détail des projets'!K40)=0,\"\",'Détail des projets'!K40)","v":5133.1499999999996}]
[null,{"$f":"IF(LEN('Détail des projets'!B41)=0,\"\",'Détail des projets'!B41)","v":""},{"$f":"IF(LEN('Détail des projets'!C41)=0,\"\",'Détail des projets'!C41)","v":""},{"$f":"IF(LEN('Détail des projets'!G41)=0,\"\",'Détail des projets'!G41)","v":""},{"$f":"IF(LEN('Détail des projets'!K41)=0,\"\",'Détail des projets'!K41)","v":""}]
[null,{"$f":"IF(LEN('Détail des projets'!B42)=0,\"\",'Détail des projets'!B42)","v":""},{"$f":"IF(LEN('Détail des projets'!C42)=0,\"\",'Détail des projets'!C42)","v":""},{"$f":"IF(LEN('Détail des projets'!G42)=0,\"\",'Détail des projets'!G42)","v":""},{"$f":"IF(LEN('Détail des projets'!K42)=0,\"\",'Détail des projets'!K42)","v":""}]
[null,{"$f":"IF(LEN('Détail des projets'!B43)=0,\"\",'Détail des projets'!B43)","v":""},{"$f":"IF(LEN('Détail des projets'!C43)=0,\"\",'Détail des projets'!C43)","v":""},{"$f":"IF(LEN('Détail des projets'!G43)=0,\"\",'Détail des projets'!G43)","v":""},{"$f":"IF(LEN('Détail des projets'!K43)=0,\"\",'Détail des projets'!K43)","v":""}]
[null,{"$f":"IF(LEN('Détail des projets'!B44)=0,\"\",'Détail des projets'!B44)","v":""},{"$f":"IF(LEN('Détail des projets'!C44)=0,\"\",'Détail des projets'!C44)","v":""},{"$f":"IF(LEN('Détail des projets'!G44)=0,\"\",'Détail des projets'!G44)","v":""},{"$f":"IF(LEN('Détail des projets'!K44)=0,\"\",'Détail des projets'!K44)","v":""}]
[null,{"$f":"IF(LEN('Détail des projets'!B45)=0,\"\",'Détail des projets'!B45)","v":""},{"$f":"IF(LEN('Détail des projets'!C45)=0,\"\",'Détail des projets'!C45)","v":""},{"$f":"IF(LEN('Détail des projets'!G45)=0,\"\",'Détail des projets'!G45)","v":""},{"$f":"IF(LEN('Détail des projets'!K45)=0,\"\",'Détail des projets'!K45)","v":""}]
[null,{"$f":"IF(LEN('Détail des projets'!B46)=0,\"\",'Détail des projets'!B46)","v":""},{"$f":"IF(LEN('Détail des projets'!C46)=0,\"\",'Détail des projets'!C46)","v":""},{"$f":"IF(LEN('Détail des projets'!G46)=0,\"\",'Détail des projets'!G46)","v":""},{"$f":"IF(LEN('Détail des projets'!K46)=0,\"\",'Détail des projets'!K46)","v":""}]
[null,{"$f":"IF(LEN('Détail des projets'!B47)=0,\"\",'Détail des projets'!B47)","v":""},{"$f":"IF(LEN('Détail des projets'!C47)=0,\"\",'Détail des projets'!C47)","v":""},{"$f":"IF(LEN('Détail des projets'!G47)=0,\"\",'Détail des projets'!G47)","v":""},{"$f":"IF(LEN('Détail des projets'!K47)=0,\"\",'Détail des projets'!K47)","v":""}]
[null,{"$f":"IF(LEN('Détail des projets'!B48)=0,\"\",'Détail des projets'!B48)","v":""},{"$f":"IF(LEN('Détail des projets'!C48)=0,\"\",'Détail des projets'!C48)","v":""},{"$f":"IF(LEN('Détail des projets'!G48)=0,\"\",'Détail des projets'!G48)","v":""},{"$f":"IF(LEN('Détail des projets'!K48)=0,\"\",'Détail des projets'!K48)","v":""}]
[null,{"$f":"IF(LEN('Détail des projets'!B49)=0,\"\",'Détail des projets'!B49)","v":""},{"$f":"IF(LEN('Détail des projets'!C49)=0,\"\",'Détail des projets'!C49)","v":""},{"$f":"IF(LEN('Détail des projets'!G49)=0,\"\",'Détail des projets'!G49)","v":""},{"$f":"IF(LEN('Détail des projets'!K49)=0,\"\",'Détail des projets'!K49)","v":""}]
[null,{"$f":"IF(LEN('Détail des projets'!B50)=0,\"\",'Détail des projets'!B50)","v":""},{"$f":"IF(LEN('Détail des projets'!C50)=0,\"\",'Détail des projets'!C50)","v":""},{"$f":"IF(LEN('Détail des projets'!G50)=0,\"\",'Détail des projets'!G50)","v":""},{"$f":"IF(LEN('Détail des projets'!K50)=0,\"\",'Détail des projets'!K50)","v":""}]
[null,{"$f":"IF(LEN('Détail des projets'!B51)=0,\"\",'Détail des projets'!B51)","v":""},{"$f":"IF(LEN('Détail des projets'!C51)=0,\"\",'Détail des projets'!C51)","v":""},{"$f":"IF(LEN('Détail des projets'!G51)=0,\"\",'Détail des projets'!G51)","v":""},{"$f":"IF(LEN('Détail des projets'!K51)=0,\"\",'Détail des projets'!K51)","v":""}]
[null,"TOTAL (tonnes CO2 éq.)",null,null,null,0,null,null,null,null,null,null,null,null,null,{"$f":"SUM(P25:P51)","v":0},0,0,0,0,0,0,0,0,0,0,0,0,0,0,0,0,0,{"$f":"SUM(AH25:AH49)","v":0},0,0,0,0,0]

{"sheet":"Indicateurs","index":5,"n_rows":292,"n_cols":43,"rows_kept":292,"cut":false,"hidden":false,"merged":[[158,11,158,15],[159,11,159,15],[160,11,160,15],[161,11,161,15],[162,11,162,15],[163,11,163,15],[164,11,164,15],[156,5,156,6],[158,5,158,6],[159,5,159,6],[160,5,160,6],[161,5,161,6],[162,5,162,6],[163,5,163,6],[164,5,164,6],[158,9,158,10],[159,9,159,10],[160,9,160,10],[161,9,161,10],[162,9,162,10],[158,7,158,8],[159,7,159,8],[165,11,165,15],[1,1,1,5],[1,7,1,8],[2,7,5,20],[152,1,152,4],[68,1,68,4],[70,1,72,3],[73,1,75,3],[69,1,69,3],[68,5,68,20],[1,18,1,19],[155,18,155,19],[155,9,155,10],[156,18,156,19],[156,9,156,10],[154,9,154,10],[153,9,153,10],[155,1,155,2],[155,7,155,8],[155,5,155,6],[154,5,154,6],[153,5,153,6],[154,7,154,8],[153,7,153,8],[22,21,23,21],[2,1,2,3],[5,1,5,5],[3,2,3,5],[4,2,4,5],[22,19,23,19],[21,1,21,5],[22,18,23,18],[22,3,23,3],[22,4,23,4],[22,1,23,1],[22,2,23,2],[22,5,23,5],[19,1,19,3],[19,4,19,5],[156,1,156,2],[156,7,156,8],[154,18,154,19],[153,11,154,15],[155,11,155,15],[156,11,156,15],[157,1,157,2],[157,5,157,6],[157,7,157,8],[157,9,157,10],[157,18,157,19],[157,11,157,15],[172,1,172,2],[173,1,173,2],[174,1,174,2],[158,1,158,2],[159,1,159,2],[160,1,160,2],[161,1,161,2],[162,1,162,2],[163,1,163,2],[164,1,164,2],[165,1,165,2],[166,1,166,2],[167,1,167,2],[168,1,168,2],[169,1,169,2],[170,1,170,2],[171,1,171,2],[175,1,175,2],[176,1,176,2],[177,1,177,2],[178,1,178,2],[179,1,179,2],[274,18,274,19],[275,1,275,2],[275,5,275,6],[275,7,275,8],[275,9,275,10],[275,18,275,19],[274,1,274,2],[274,5,274,6],[274,7,274,8],[274,9,274,10],[181,1,181,2],[182,1,182,2],[183,1,183,2],[184,1,184,2],[185,1,185,2],[180,1,180,2],[191,1,191,2],[192,1,192,2],[193,1,193,2],[276,18,276,19],[277,1,277,2],[277,5,277,6],[277,7,277,8],[277,9,277,10],[277,18,277,19],[276,1,276,2],[276,5,276,6],[276,7,276,8],[276,9,276,10],[277,11,277,13],[278,18,278,19],[279,1,279,2],[279,5,279,6],[279,7,279,8],[279,9,279,10],[279,18,279,19],[278,1,278,2],[278,5,278,6],[278,7,278,8],[278,9,278,10],[278,11,278,13],[279,11,279,13],[280,18,280,19],[281,1,281,2],[281,5,281,6],[281,7,281,8],[281,9,281,10],[281,18,281,19],[280,1,280,2],[280,5,280,6],[280,7,280,8],[280,9,280,10],[280,11,280,13],[281,11,281,13],[282,18,282,19],[283,1,283,2],[283,5,283,6],[283,7,283,8],[283,9,283,10],[283,18,283,19],[282,1,282,2],[282,5,282,6],[282,7,282,8],[282,9,282,10],[283,11,283,13],[282,11,282,13],[284,18,284,19],[285,1,285,2],[285,5,285,6],[285,7,285,8],[285,9,285,10],[285,18,285,19],[284,1,284,2],[284,5,284,6],[284,7,284,8],[284,9,284,10],[284,11,284,13],[285,11,285,13],[286,18,286,19],[287,1,287,2],[287,5,287,6],[287,7,287,8],[287,9,287,10],[287,18,287,19],[286,1,286,2],[286,5,286,6],[286,7,286,8],[286,9,286,10],[286,11,286,13],[287,11,287,13],[290,18,290,19],[291,1,291,20],[290,1,290,2],[290,5,290,6],[290,7,290,8],[290,9,290,10],[288,18,288,19],[289,1,289,2],[289,5,289,6],[289,7,289,8],[289,9,289,10],[289,18,289,19],[288,1,288,2],[288,5,288,6],[288,7,288,8],[288,9,288,10],[288,11,288,13],[289,11,289,13],[290,11,290,13],[194,1,194,2],[195,1,195,2],[186,1,186,2],[187,1,187,2],[188,1,188,2],[189,1,189,2],[190,1,190,2],[201,1,201,2],[202,1,202,2],[203,1,203,2],[204,1,204,2],[205,1,205,2],[196,1,196,2],[197,1,197,2],[198,1,198,2],[199,1,199,2],[200,1,200,2],[211,1,211,2],[212,1,212,2],[213,1,213,2],[214,1,214,2],[215,1,215,2],[206,1,206,2],[207,1,207,2],[208,1,208,2],[209,1,209,2],[210,1,210,2],[221,1,221,2],[222,1,222,2],[223,1,223,2],[224,1,224,2],[225,1,225,2],[216,1,216,2],[217,1,217,2],[218,1,218,2],[219,1,219,2],[220,1,220,2],[231,1,231,2],[232,1,232,2],[233,1,233,2],[234,1,234,2],[235,1,235,2],[226,1,226,2],[227,1,227,2],[228,1,228,2],[229,1,229,2],[230,1,230,2],[241,1,241,2],[242,1,242,2],[243,1,243,2],[244,1,244,2],[245,1,245,2],[236,1,236,2],[237,1,237,2],[238,1,238,2],[239,1,239,2],[240,1,240,2],[252,1,252,2],[253,1,253,2],[254,1,254,2],[255,1,255,2],[246,1,246,2],[247,1,247,2],[248,1,248,2],[249,1,249,2],[250,1,250,2],[272,1,272,2],[273,1,273,2],[267,1,267,2],[268,1,268,2],[269,1,269,2],[261,1,261,2],[262,1,262,2],[263,1,263,2],[270,1,270,2],[271,1,271,2],[266,1,266,2],[265,1,265,2],[264,1,264,2],[256,1,256,2],[257,1,257,2],[258,1,258,2],[259,1,259,2],[260,1,260,2],[251,1,251,2],[168,5,168,6],[169,5,169,6],[170,5,170,6],[171,5,171,6],[172,5,172,6],[188,5,188,6],[189,5,189,6],[190,5,190,6],[191,5,191,6],[192,5,192,6],[183,5,183,6],[184,5,184,6],[185,5,185,6],[186,5,186,6],[187,5,187,6],[198,5,198,6],[199,5,199,6],[200,5,200,6],[165,5,165,6],[166,5,166,6],[167,5,167,6],[178,5,178,6],[179,5,179,6],[180,5,180,6],[181,5,181,6],[182,5,182,6],[173,5,173,6],[174,5,174,6],[175,5,175,6],[176,5,176,6],[177,5,177,6],[201,5,201,6],[202,5,202,6],[193,5,193,6],[194,5,194,6],[195,5,195,6],[196,5,196,6],[197,5,197,6],[208,5,208,6],[209,5,209,6],[210,5,210,6],[211,5,211,6],[212,5,212,6],[203,5,203,6],[204,5,204,6],[205,5,205,6],[206,5,206,6],[207,5,207,6],[218,5,218,6],[219,5,219,6],[220,5,220,6],[221,5,221,6],[222,5,222,6],[213,5,213,6],[214,5,214,6],[215,5,215,6],[216,5,216,6],[217,5,217,6],[228,5,228,6],[229,5,229,6],[230,5,230,6],[231,5,231,6],[232,5,232,6],[223,5,223,6],[224,5,224,6],[225,5,225,6],[226,5,226,6],[227,5,227,6],[238,5,238,6],[239,5,239,6],[240,5,240,6],[241,5,241,6],[242,5,242,6],[233,5,233,6],[234,5,234,6],[235,5,235,6],[236,5,236,6],[237,5,237,6],[248,5,248,6],[249,5,249,6],[250,5,250,6],[251,5,251,6],[252,5,252,6],[243,5,243,6],[244,5,244,6],[245,5,245,6],[246,5,246,6],[247,5,247,6],[266,5,266,6],[267,5,267,6],[258,5,258,6],[259,5,259,6],[260,5,260,6],[261,5,261,6],[262,5,262,6],[253,5,253,6],[254,5,254,6],[255,5,255,6],[256,5,256,6],[257,5,257,6],[273,5,273,6],[229,7,229,8],[230,7,230,8],[231,7,231,8],[232,7,232,8],[233,7,233,8],[234,7,234,8],[235,7,235,8],[236,7,236,8],[237,7,237,8],[238,7,238,8],[239,7,239,8],[240,7,240,8],[241,7,241,8],[242,7,242,8],[243,7,243,8],[268,5,268,6],[269,5,269,6],[270,5,270,6],[271,5,271,6],[272,5,272,6],[263,5,263,6],[264,5,264,6],[265,5,265,6],[249,7,249,8],[250,7,250,8],[251,7,251,8],[252,7,252,8],[253,7,253,8],[244,7,244,8],[245,7,245,8],[246,7,246,8],[247,7,247,8],[248,7,248,8],[259,7,259,8],[260,7,260,8],[261,7,261,8],[262,7,262,8],[263,7,263,8],[254,7,254,8],[255,7,255,8],[256,7,256,8],[257,7,257,8],[258,7,258,8],[269,7,269,8],[270,7,270,8],[271,7,271,8],[272,7,272,8],[273,7,273,8],[264,7,264,8],[265,7,265,8],[266,7,266,8],[267,7,267,8],[268,7,268,8],[205,7,205,8],[206,7,206,8],[207,7,207,8],[227,7,227,8],[228,7,228,8],[208,7,208,8],[209,7,209,8],[210,7,210,8],[211,7,211,8],[212,7,212,8],[213,7,213,8],[214,7,214,8],[215,7,215,8],[216,7,216,8],[222,7,222,8],[223,7,223,8],[224,7,224,8],[225,7,225,8],[226,7,226,8],[217,7,217,8],[218,7,218,8],[219,7,219,8],[220,7,220,8],[221,7,221,8],[173,7,173,8],[174,7,174,8],[175,7,175,8],[176,7,176,8],[177,7,177,8],[178,7,178,8],[203,7,203,8],[204,7,204,8],[200,7,200,8],[201,7,201,8],[202,7,202,8],[179,7,179,8],[180,7,180,8],[181,7,181,8],[182,7,182,8],[195,7,195,8],[196,7,196,8],[197,7,197,8],[198,7,198,8],[199,7,199,8],[190,7,190,8],[191,7,191,8],[192,7,192,8],[193,7,193,8],[194,7,194,8],[185,7,185,8],[186,7,186,8],[187,7,187,8],[188,7,188,8],[189,7,189,8],[183,7,183,8],[184,7,184,8],[160,7,160,8],[161,7,161,8],[162,7,162,8],[163,7,163,8],[164,7,164,8],[165,7,165,8],[166,7,166,8],[167,7,167,8],[168,7,168,8],[169,7,169,8],[168,9,168,10],[169,9,169,10],[170,9,170,10],[171,9,171,10],[172,9,172,10],[163,9,163,10],[164,9,164,10],[165,9,165,10],[166,9,166,10],[167,9,167,10],[170,7,170,8],[171,7,171,8],[172,7,172,8],[178,9,178,10],[179,9,179,10],[180,9,180,10],[181,9,181,10],[182,9,182,10],[173,9,173,10],[174,9,174,10],[175,9,175,10],[176,9,176,10],[177,9,177,10],[188,9,188,10],[189,9,189,10],[190,9,190,10],[208,9,208,10],[191,9,191,10],[192,9,192,10],[183,9,183,10],[184,9,184,10],[185,9,185,10],[186,9,186,10],[187,9,187,10],[198,9,198,10],[199,9,199,10],[203,9,203,10],[204,9,204,10],[205,9,205,10],[206,9,206,10],[207,9,207,10],[200,9,200,10],[201,9,201,10],[202,9,202,10],[193,9,193,10],[194,9,194,10],[195,9,195,10],[196,9,196,10],[197,9,197,10],[213,9,213,10],[214,9,214,10],[215,9,215,10],[216,9,216,10],[217,9,217,10],[209,9,209,10],[210,9,210,10],[211,9,211,10],[212,9,212,10],[223,9,223,10],[224,9,224,10],[225,9,225,10],[226,9,226,10],[227,9,227,10],[218,9,218,10],[219,9,219,10],[220,9,220,10],[221,9,221,10],[222,9,222,10],[233,9,233,10],[234,9,234,10],[235,9,235,10],[236,9,236,10],[237,9,237,10],[228,9,228,10],[229,9,229,10],[230,9,230,10],[231,9,231,10],[232,9,232,10],[243,9,243,10],[244,9,244,10],[245,9,245,10],[246,9,246,10],[247,9,247,10],[238,9,238,10],[239,9,239,10],[240,9,240,10],[241,9,241,10],[242,9,242,10],[253,9,253,10],[254,9,254,10],[255,9,255,10],[256,9,256,10],[257,9,257,10],[248,9,248,10],[249,9,249,10],[250,9,250,10],[251,9,251,10],[252,9,252,10],[175,11,175,13],[176,11,176,13],[177,11,177,13],[178,11,178,13],[179,11,179,13],[180,11,180,13],[181,11,181,13],[182,11,182,13],[273,9,273,10],[268,9,268,10],[269,9,269,10],[270,9,270,10],[271,9,271,10],[272,9,272,10],[263,9,263,10],[264,9,264,10],[265,9,265,10],[266,9,266,10],[267,9,267,10],[258,9,258,10],[259,9,259,10],[260,9,260,10],[261,9,261,10],[262,9,262,10],[221,11,221,13],[223,11,223,13],[224,11,224,13],[225,11,225,13],[202,11,202,13],[183,11,183,13],[184,11,184,13],[185,11,185,13],[186,11,186,13],[187,11,187,13],[188,11,188,13],[189,11,189,13],[190,11,190,13],[191,11,191,13],[192,11,192,13],[193,11,193,13],[194,11,194,13],[195,11,195,13],[196,11,196,13],[197,11,197,13],[198,11,198,13],[199,11,199,13],[200,11,200,13],[201,11,201,13],[212,11,212,13],[213,11,213,13],[214,11,214,13],[215,11,215,13],[216,11,216,13],[217,11,217,13],[218,11,218,13],[219,11,219,13],[220,11,220,13],[203,11,203,13],[204,11,204,13],[205,11,205,13],[206,11,206,13],[207,11,207,13],[208,11,208,13],[209,11,209,13],[210,11,210,13],[211,11,211,13],[261,11,261,13],[262,11,262,13],[248,11,248,13],[249,11,249,13],[250,11,250,13],[251,11,251,13],[252,11,252,13],[232,11,232,13],[222,11,222,13],[255,11,255,13],[167,18,167,19],[168,18,168,19],[169,18,169,19],[170,18,170,19],[171,18,171,19],[172,18,172,19],[263,11,263,13],[264,11,264,13],[238,11,238,13],[239,11,239,13],[240,11,240,13],[241,11,241,13],[242,11,242,13],[233,11,233,13],[234,11,234,13],[235,11,235,13],[236,11,236,13],[237,11,237,13],[256,11,256,13],[257,11,257,13],[258,11,258,13],[259,11,259,13],[253,11,253,13],[254,11,254,13],[158,18,158,19],[159,18,159,19],[160,18,160,19],[161,18,161,19],[162,18,162,19],[163,18,163,19],[164,18,164,19],[165,18,165,19],[166,18,166,19],[178,18,178,19],[179,18,179,19],[180,18,180,19],[181,18,181,19],[182,18,182,19],[173,18,173,19],[174,18,174,19],[175,18,175,19],[176,18,176,19],[177,18,177,19],[188,18,188,19],[189,18,189,19],[190,18,190,19],[191,18,191,19],[192,18,192,19],[183,18,183,19],[184,18,184,19],[185,18,185,19],[186,18,186,19],[187,18,187,19],[198,18,198,19],[199,18,199,19],[200,18,200,19],[201,18,201,19],[202,18,202,19],[193,18,193,19],[194,18,194,19],[195,18,195,19],[196,18,196,19],[197,18,197,19],[208,18,208,19],[209,18,209,19],[210,18,210,19],[211,18,211,19],[212,18,212,19],[203,18,203,19],[204,18,204,19],[205,18,205,19],[206,18,206,19],[207,18,207,19],[218,18,218,19],[219,18,219,19],[220,18,220,19],[221,18,221,19],[222,18,222,19],[213,18,213,19],[214,18,214,19],[215,18,215,19],[216,18,216,19],[217,18,217,19],[228,18,228,19],[229,18,229,19],[230,18,230,19],[231,18,231,19],[232,18,232,19],[223,18,223,19],[224,18,224,19],[225,18,225,19],[226,18,226,19],[227,18,227,19],[238,18,238,19],[239,18,239,19],[240,18,240,19],[241,18,241,19],[242,18,242,19],[233,18,233,19],[234,18,234,19],[235,18,235,19],[236,18,236,19],[237,18,237,19],[257,18,257,19],[248,18,248,19],[249,18,249,19],[250,18,250,19],[251,18,251,19],[252,18,252,19],[243,18,243,19],[244,18,244,19],[245,18,245,19],[246,18,246,19],[247,18,247,19],[273,18,273,19],[153,1,154,2],[153,3,154,3],[153,4,154,4],[153,18,153,19],[268,18,268,19],[269,18,269,19],[270,18,270,19],[271,18,271,19],[272,18,272,19],[263,18,263,19],[264,18,264,19],[265,18,265,19],[266,18,266,19],[267,18,267,19],[258,18,258,19],[259,18,259,19],[260,18,260,19],[261,18,261,19],[262,18,262,19],[253,18,253,19],[254,18,254,19],[255,18,255,19],[256,18,256,19],[169,11,169,13],[170,11,170,13],[171,11,171,13],[172,11,172,13],[173,11,173,13],[174,11,174,13],[166,11,166,15],[167,11,167,15],[168,11,168,15],[274,11,274,13],[275,11,275,13],[276,11,276,13],[243,11,243,13],[244,11,244,13],[245,11,245,13],[246,11,246,13],[247,11,247,13],[226,11,226,13],[227,11,227,13],[228,11,228,13],[229,11,229,13],[230,11,230,13],[231,11,231,13],[260,11,260,13],[265,11,265,13],[266,11,266,13],[267,11,267,13],[268,11,268,13],[269,11,269,13],[270,11,270,13],[271,11,271,13],[272,11,272,13],[273,11,273,13]]}
[]
[null,{"$f":"Utilitaire!E8","v":"Plan d'action 2013-2020 sur les changements climatiques"}]
[null,{"$f":"\"Action \" & Accueil!D58","v":"Action en cours"}]
[null,{"$f":"Accueil!D55","v":"29.2.2"},{"$f":"Accueil!E55","v":"Adapter les outils de conservation de la faune aux changements climatiques: espèces menacées vulnérables (EMV) et espèces exotiques envahissantes (EEE)"}]
[null,"Ministère porteur:",{"$f":"Accueil!$D$65","v":"MFFP"}]
[null,"Indicateurs"]
[]
[]
[]
[]
[]
[]
[]
[]
[]
[]
[]
[]
[]
[null,"Informations en date du :",null,null,"2022-03-31"]
[]
[null,"INDICATEURS DE PERFORMANCE",null,null,null,null,null,{"$f":"IF(OR(AND(MONTH(#REF!)>6,YEAR(#REF!)=VALUE(MID(G23,1,4))),YEAR(#REF!)>VALUE(MID(G23,1,4))),\"Réel\",\"Prévu\")","v":{"$error":"#REF!"}},{"$f":"IF(OR(AND(MONTH(#REF!)>6,YEAR(#REF!)=VALUE(MID(H23,1,4))),YEAR(#REF!)>VALUE(MID(H23,1,4))),\"Réel\",\"Prévu\")","v":{"$error":"#REF!"}},{"$f":"IF(OR(AND(MONTH(#REF!)>6,YEAR(#REF!)=VALUE(MID(I23,1,4))),YEAR(#REF!)>VALUE(MID(I23,1,4))),\"Réel\",\"Prévu\")","v":{"$error":"#REF!"}},{"$f":"IF(OR(AND(MONTH(#REF!)>6,YEAR(#REF!)=VALUE(MID(J23,1,4))),YEAR(#REF!)>VALUE(MID(J23,1,4))),\"Réel\",\"Prévu\")","v":{"$error":"#REF!"}},{"$f":"IF(OR(AND(MONTH(#REF!)>6,YEAR(#REF!)=VALUE(MID(K23,1,4))),YEAR(#REF!)>VALUE(MID(K23,1,4))),\"Réel\",\"Prévu\")","v":{"$error":"#REF!"}},{"$f":"IF(OR(AND(MONTH(#REF!)>6,YEAR(#REF!)=VALUE(MID(L23,1,4))),YEAR(#REF!)>VALUE(MID(L23,1,4))),\"Réel\",\"Prévu\")","v":{"$error":"#REF!"}},{"$f":"IF(OR(AND(MONTH(#REF!)>6,YEAR(#REF!)=VALUE(MID(M23,1,4))),YEAR(#REF!)>VALUE(MID(M23,1,4))),\"Réel\",\"Prévu\")","v":{"$error":"#REF!"}},{"$f":"IF(OR(AND(MONTH(#REF!)>6,YEAR(#REF!)=VALUE(MID(N23,1,4))),YEAR(#REF!)>VALUE(MID(N23,1,4))),\"Réel\",\"Prévu\")","v":{"$error":"#REF!"}},{"$f":"IF(OR(AND(MONTH(#REF!)>6,YEAR(#REF!)=VALUE(MID(O23,1,4))),YEAR(#REF!)>VALUE(MID(O23,1,4))),\"Réel\",\"Prévu\")","v":{"$error":"#REF!"}},{"$f":"IF(OR(AND(MONTH(#REF!)>6,YEAR(#REF!)=VALUE(MID(P23,1,4))),YEAR(#REF!)>VALUE(MID(P23,1,4))),\"Réel\",\"Prévu\")","v":{"$error":"#REF!"}},null,{"$f":"IF(OR(AND(MONTH(#REF!)>6,YEAR(#REF!)=VALUE(MID(Q23,1,4))),YEAR(#REF!)>VALUE(MID(Q23,1,4))),\"Réel\",\"Prévu\")","v":{"$error":"#REF!"}},{"$f":"MONTH(#REF!)","v":{"$error":"#REF!"}}]
[null,"Cible","Unité de mesure","Année prévue d'atteinte de la cible","Description de l'indicateur","Type d'indicateur","2013-2014","2014-2015","2015-2016","2016-2017","2017-2018","2018-2019","2019-2020","2020-2021","2021-2022","2022-2023","2023-2024","2024-2025","RÉSULTAT À COMPARER AVEC LA CIBLE","Pourcentage d'atteinte de la cible","Commentaires sur les résultats"]
[null,null,null,null,null,null,"Réel","Réel","Réel","Réel","Réel","Réel","Réel","Réel","Réel","Prévu","Prévu","Prévu",null,null,"(facultatif)"]
[1,null,null,null,null,null,{"$f":"PourcentageAvancementJbf(Utilitaire!C229,'Détail des projets'!O52,1000000*Accueil!$D$67)","v":1.3901060070671378E-2},{"$f":"PourcentageAvancementJbf(Utilitaire!D229,'Détail des projets'!P52,1000000*Accueil!$D$67)","v":2.6711307420494702E-2},{"$f":"PourcentageAvancementJbf(Utilitaire!E229,'Détail des projets'!Q52,1000000*Accueil!$D$67)","v":8.3118445229681981E-2},{"$f":"PourcentageAvancementJbf(Utilitaire!F229,'Détail des projets'!R52,1000000*Accueil!$D$67)","v":6.2947111660777377E-2},{"$f":"PourcentageAvancementJbf(Utilitaire!G229,'Détail des projets'!S52,1000000*Accueil!$D$67)","v":9.4415485512367475E-2},{"$f":"PourcentageAvancementJbf(Utilitaire!H229,'Détail des projets'!T52,1000000*Accueil!$D$67)","v":7.8672089752650179E-2},{"$f":"PourcentageAvancementJbf(Utilitaire!I229,'Détail des projets'!U52,1000000*Accueil!$D$67)","v":0.1029988558303887},{"$f":"PourcentageAvancementJbf(Utilitaire!J229,'Détail des projets'!V52,1000000*Accueil!$D$67)","v":0.13706033144876323},{"$f":"PourcentageAvancementJbf(Utilitaire!K229,'Détail des projets'!W52,1000000*Accueil!$D$67)","v":5.5903909540636045E-2},null,null,null,null,{"$f":"IF(COUNTA(B25)=1,IF(COUNTA(S25)=1,IF(F25=\"Minimum à atteindre\",IF(B25=0,IF(S25>0,1,0),S25/B25),IF(F25=\"Maximum à ne pas dépasser\",IF(B25=0,IF(S25<0,1,0),(B25-S25)/B25+1),IF(F25=\"Binaire\",IF(B25=S25,1,0),\"\"))),0),\"\")","v":""}]
[2,35,"fiches","2021","Nombre de fiches de vulgarisation pour la majorité des projets réalisés et diffusion auprès des clientèles pour améliorer la capacité à prendre en compte les CC en conservation de la faune","minimum à atteindre",null,null,null,3,12,22,30,38,null,null,null,null,38,{"$f":"IF(COUNTA(B26)=1,IF(COUNTA(S26)=1,IF(F26=\"Minimum à atteindre\",IF(B26=0,IF(S26>0,1,0),S26/B26),IF(F26=\"Maximum à ne pas dépasser\",IF(B26=0,IF(S26<0,1,0),(B26-S26)/B26+1),IF(F26=\"Binaire\",IF(B26=S26,1,0),\"\"))),0),\"\")","v":1.0857142857142856}]
[3,9,"projets réalisés","2021","Réalisation de projets relatifs aux espèces exotiques envahissantes et visant à évaluer les impacts des changements climatiques et à identifier et mettre en œuvre des mesures d'adaptation face aux changements climatiques","minimum à atteindre",null,null,null,3,4,7,8,10,null,null,null,null,10,1.1111111111111112]
[4,31,"projets réalisés","2021","Réalisation de projets relatifs aux espèces menacées ou vulnérables et visant à évaluer les impacts des changements climatiques et à identifier et mettre en œuvre des mesures d'adaptation face aux changements climatiques","minimum à atteindre",null,null,null,9,11,26,28,33,null,null,null,null,33,1.064516129032258]
[5,null,null,null,null,null,null,null,null,null,null,null,null,null,null,null,null,null,null,""]
[6,null,null,null,null,null,null,null,null,null,null,null,null,null,null,null,null,null,null,""]
[7,null,null,null,null,null,null,null,null,null,null,null,null,null,null,null,null,null,null,""]
[8,null,null,null,null,null,null,null,null,null,null,null,null,null,null,null,null,null,null,""]
[9,null,null,null,null,null,null,null,null,null,null,null,null,null,null,null,null,null,null,""]
[10,null,null,null,null,null,null,null,null,null,null,null,null,null,null,null,null,null,null,""]
[11,null,null,null,null,null,null,null,null,null,null,null,null,null,null,null,null,null,null,{"$f":"IF(COUNTA(B35)=1,IF(COUNTA(S35)=1,IF(F35=\"Minimum à atteindre\",IF(B35=0,IF(S35>0,1,0),S35/B35),IF(F35=\"Maximum à ne pas dépasser\",IF(B35=0,IF(S35<0,1,0),(B35-S35)/B35+1),IF(F35=\"Binaire\",IF(B35=S35,1,0),\"\"))),0),\"\")","v":""}]
[12,null,null,null,null,null,null,null,null,null,null,null,null,null,null,null,null,null,null,{"$f":"IF(COUNTA(B36)=1,IF(COUNTA(S36)=1,IF(F36=\"Minimum à atteindre\",IF(B36=0,IF(S36>0,1,0),S36/B36),IF(F36=\"Maximum à ne pas dépasser\",IF(B36=0,IF(S36<0,1,0),(B36-S36)/B36+1),IF(F36=\"Binaire\",IF(B36=S36,1,0),\"\"))),0),\"\")","v":""}]
[13,null,null,null,null,null,null,null,null,null,null,null,null,null,null,null,null,null,null,{"$f":"IF(COUNTA(B37)=1,IF(COUNTA(S37)=1,IF(F37=\"Minimum à atteindre\",IF(B37=0,IF(S37>0,1,0),S37/B37),IF(F37=\"Maximum à ne pas dépasser\",IF(B37=0,IF(S37<0,1,0),(B37-S37)/B37+1),IF(F37=\"Binaire\",IF(B37=S37,1,0),\"\"))),0),\"\")","v":""}]
[14,null,null,null,null,null,null,null,null,null,null,null,null,null,null,null,null,null,null,""]
[15,null,null,null,null,null,null,null,null,null,null,null,null,null,null,null,null,null,null,{"$f":"IF(COUNTA(B39)=1,IF(COUNTA(S39)=1,IF(F39=\"Minimum à atteindre\",IF(B39=0,IF(S39>0,1,0),S39/B39),IF(F39=\"Maximum à ne pas dépasser\",IF(B39=0,IF(S39<0,1,0),(B39-S39)/B39+1),IF(F39=\"Binaire\",IF(B39=S39,1,0),\"\"))),0),\"\")","v":""}]
[16,null,null,null,null,null,null,null,null,null,null,null,null,null,null,null,null,null,null,{"$f":"IF(COUNTA(B40)=1,IF(COUNTA(S40)=1,IF(F40=\"Minimum à atteindre\",IF(B40=0,IF(S40>0,1,0),S40/B40),IF(F40=\"Maximum à ne pas dépasser\",IF(B40=0,IF(S40<0,1,0),(B40-S40)/B40+1),IF(F40=\"Binaire\",IF(B40=S40,1,0),\"\"))),0),\"\")","v":""}]
[17,null,null,null,null,null,null,null,null,null,null,null,null,null,null,null,null,null,null,""]
[18,null,null,null,null,null,null,null,null,null,null,null,null,null,null,null,null,null,null,""]
[19,null,null,null,null,null,null,null,null,null,null,null,null,null,null,null,null,null,null,""]
[20,null,null,null,null,null,null,null,null,null,null,null,null,null,null,null,null,null,null,""]
[21,null,null,null,null,null,null,null,null,null,null,null,null,null,null,null,null,null,null,"",null,null,null,null,null,null,null,null,null,null,null,null,null,null,null,null,null,null,null,null,null,null,false]
[]
[]
[]
[]
[]
[]
[]
[]
[]
[]
[]
[]
[]
[]
[]
[]
[]
[]
[]
[]
[]
[]
[]
[null,"PRÉVISIONS DES RETOMBÉES SUR LES RÉDUCTIONS DES ÉMISSIONS DE GES",null,null,null,"Ce tableau et les résultats par action qu'il contient ne seront pas publiés. L'objectif est de permettre une appréciation à l'échelle du PACC des résultats escomptés. Veuillez le compléter et vérifier l'information qui y est contenue, au meilleur de vos connaissances et avec l'information dont vous disposez."]
[null,"Niveau de certitude",null,null,"Lieu",2020,2021,2022,2023,2024,2025,2026,2030,2035,2036,2038,2029,2031,2040,2050,"Commentaires sur les résultats"]
[null,"Pérennité des réductions d'émissions de GES réalisées à ce jour \n(T éq. CO2)",null,null,"Au Québec"]
[null,null,null,null,"Hors Québec"]
[null,null,null,null,"Non distingué"]
[null,"Développement du potentiel de réduction des émissions de GES pour le futur \n(T éq. CO2)",null,null,"Au Québec"]
[null,null,null,null,"Hors Québec"]
[null,null,null,null,"Non distingué"]
[]
[]
[]
[]
[]
[]
[]
[]
[]
[]
[]
[]
[]
[]
[]
[]
[]
[]
[]
[]
[]
[]
[]
[]
[]
[]
[]
[]
[]
[]
[]
[]
[]
[]
[]
[]
[]
[]
[]
[]
[]
[]
[]
[]
[]
[]
[]
[]
[]
[]
[]
[]
[]
[]
[]
[]
[]
[]
[]
[]
[]
[]
[]
[]
[]
[]
[]
[]
[]
[]
[]
[]
[]
[]
[]
[]
[null,"ADAPTATION AUX EFFETS DES CHANGEMENTS CLIMATIQUES"]
[null,"Solutions d'adaptation proposées",null,"Lignes concernées de l'onglet Détail des projets","Étape","Ajustements",null,"Risques",null,"Effets des changements climatiques",null,"Région",null,null,null,null,null,null,"Échelle humaine",null,"Échelle environnementale"]
[null,null,null,null,null,"La solution agit sur : ",null,"afin de protéger : ",null,"de :",null,null,null,null,null,null,null,null,"(estimation du nombre de personnes desservies)",null,"(estimation du nombre d'espèces desservies)"]
[null,"Analyse de risque et de  faisabilité de différentes mesures d'adaptation (ex. la migration assistée) pour les EMV",null,25,"Aide à la décision","Suivi de l'état de l'environnement",null,"Biodiversité",null,"Tous les effets",null,null,null,null,null,null,null,null,null,null,60]
[null,"Synthèse des études hydriques, analyse ruisseaux à salamandre",null,26,"Recherche","Suivi de l'état de l'environnement",null,"Biodiversité",null,"Modifications des régimes hydriques, de vagues ou de glaces",null,null,null,null,null,null,null,null,null,null,5]
[null,"Production d'un guide des mesures d'adaptation pour les espèces menacées ou vulnérables",null,27,"Aide à la décision","Services à la population",null,"Biodiversité",null,"Tous les effets",null,null,null,null,null,null,null,null,null,null,90]
[null,"Améliorer la sensibilisation quant aux espèces exotiques envahissantes en lien avec les changements climatiques",null,28,"Sensibilisation et formation","Services à la population",null,"Services à la population",null,"Propagation de maladies ou d'espèces nuisibles",null,null,null,null,null,null,null,null,null,null,20]
[null,"Réduire l'impact des espèces exotiques envahissantes dans l'habitat d'une espèce menacée pour une meilleure résilience aux CC",null,29,"Étude de cas et caractérisation des impacts des CC","Aménagement du territoire",null,"Biodiversité",null,"Propagation de maladies ou d'espèces nuisibles",null,null,null,null,null,null,null,null,null,null,5]
[null,"Incorporer les enjeux des changements climatiques dans les programmes de rétablissement des espèces menacées ou vulnérables",null,30,"Sensibilisation et formation","Politiques et gestion",null,"Biodiversité",null,"Tous les effets",null,null,null,null,null,null,null,null,null,null,20]
[null," Mise en place d'un réseau de surveillance des espèces exotiques envahissantes par ANDe",null,31,"Surveillance et prévention","Suivi de l'état de l'environnement",null,"Services à la population",null,"Propagation de maladies ou d'espèces nuisibles",null,null,null,null,null,null,null,null,null,null,60]
[null,"Évaluer la dynamique hydrique en vue d'aménager des étangs temporaires pour la rainette faux-grillon de l'Ouest",null,32,"Étude de cas et caractérisation des impacts des CC","Suivi de l'état de l'environnement",null,"Biodiversité",null,"Modifications des régimes hydriques, de vagues ou de glaces",null,null,null,null,null,null,null,null,null,null,1]
[null,"Divers projets visant la mise en œuvre de mesures concrètes pour réduire la vulnérabilité des espèces menacées ou vulnérables aux changements climatiques",null,33,"Réalisation","Suivi de l'état de l'environnement",null,"Biodiversité",null,"Tous les effets",null,null,null,null,null,null,null,null,null,null,20]
[null,"Analyse des vulnérabilités des espèces menacées ou vulnérables et analyse de niche",null,34,"Recherche","Suivi de l'état de l'environnement",null,"Biodiversité",null,"Tous les effets",null,null,null,null,null,null,null,null,null,null,20]
[null,"Développement d'une approche multiespèces (filtre brut) pour la gestion des espèces menacées ou vulnérables incluant une modélisation du territoire de la résilience au CC et connectivité.",null,35,"Recherche","Suivi de l'état de l'environnement",null,"Biodiversité",null,"Tous les effets",null,null,null,null,null,null,null,null,null,null,90]
[null,"Analyse de risque d'établissement et de dispersion d'espèces exotiques envahissantes dans un climat futur",null,36,"Recherche","Suivi de l'état de l'environnement",null,"Services à la population",null,"Propagation de maladies ou d'espèces nuisibles",null,null,null,null,null,null,null,null,null,null,100]
[null,"Évaluer la dynamique hydrique en vue d'aménager des étangs temporaires pour la rainette faux-grillon de l'Ouest- Achat de matériel",null,37,"Réalisation","Suivi de l'état de l'environnement",null,"Biodiversité",null,"Tous les effets",null,null,null,null,null,null,null,null,null,null,1]
[null,"Évaluation de la persistance de la petite corbeille d'Asie dans le Saint-Laurent",null,38,"recherche","Suivi de l'état de l'environnement",null,"Biodiversité",null,"Tous les effets",null,null,null,null,null,null,null,null,null,null,10]
[]
[]
[]
[]
[]
[]
[]
[]
[]
[]
[]
[]
[]
[]
[]
[]
[]
[]
[]
[]
[]
[]
[]
[]
[]
[]
[]
[]
[]
[]
[]
[]
[]
[]
[]
[]
[]
[]
[]
[]
[]
[]
[]
[]
[]
[]
[]
[]
[]
[]
[]
[]
[]
[]
[]
[]
[]
[]
[]
[]
[]
[]
[]
[]
[]
[]
[]
[]
[]
[]
[]
[]
[]
[]
[]
[]
[]
[]
[]
[]
[]
[]
[]
[]
[]
[]
[]
[]
[]
[]
[]
[]
[]
[]
[]
[]
[]
[]
[]
[]
[]
[]
[]
[]
[]
[]
[]
[]
[]
[]
[]
[]
[]
[]
[]
[]
[]
[]
[]
[]
[]
[]
[null,"Ajouter une ligne"]

{"sheet":"Évaluation","index":6,"n_rows":222,"n_cols":14,"rows_kept":222,"cut":false,"hidden":true,"merged":[[1,7,1,11],[1,1,1,5],[210,1,211,1],[210,2,211,2],[210,3,210,13],[211,3,211,13],[143,3,143,4],[143,5,143,7],[143,8,143,9],[143,10,143,11],[136,1,136,2],[136,3,136,4],[136,5,136,7],[136,8,136,9],[136,10,136,11],[142,1,142,2],[142,3,142,4],[142,5,142,7],[142,8,142,9],[142,10,142,11],[141,1,141,2],[141,3,141,4],[137,8,137,9],[137,10,137,11],[135,1,135,2],[135,3,135,4],[135,5,135,7],[135,8,135,9],[135,10,135,11],[6,1,6,2],[6,3,6,5],[134,1,134,2],[134,3,134,4],[134,5,134,7],[134,8,134,9],[134,10,134,11],[133,1,133,2],[133,3,133,4],[133,5,133,7],[133,8,133,9],[133,10,133,11],[132,1,132,2],[132,3,132,4],[132,5,132,7],[132,8,132,9],[132,10,132,11],[131,1,131,2],[131,3,131,4],[131,5,131,7],[131,8,131,9],[131,10,131,11],[130,1,130,2],[130,3,130,4],[130,5,130,7],[130,8,130,9],[130,10,130,11],[129,1,129,2],[129,3,129,4],[129,5,129,7],[129,8,129,9],[129,10,129,11],[128,1,128,2],[128,3,128,4],[128,5,128,7],[128,8,128,9],[128,10,128,11],[127,1,127,2],[127,3,127,4],[127,5,127,7],[127,8,127,9],[127,10,127,11],[126,1,126,2],[126,3,126,4],[126,5,126,7],[126,8,126,9],[126,10,126,11],[125,1,125,2],[125,3,125,4],[125,5,125,7],[125,8,125,9],[125,10,125,11],[124,1,124,2],[124,3,124,4],[124,5,124,7],[124,8,124,9],[124,10,124,11],[123,1,123,2],[123,3,123,4],[123,5,123,7],[123,8,123,9],[123,10,123,11],[122,1,122,2],[122,3,122,4],[122,5,122,7],[122,8,122,9],[122,10,122,11],[121,1,121,2],[121,3,121,4],[121,5,121,7],[121,8,121,9],[121,10,121,11],[120,1,120,2],[120,3,120,4],[120,5,120,7],[120,8,120,9],[120,10,120,11],[119,1,119,2],[119,3,119,4],[119,5,119,7],[119,8,119,9],[119,10,119,11],[118,1,118,2],[118,3,118,4],[118,5,118,7],[118,8,118,9],[118,10,118,11],[117,1,117,2],[117,3,117,4],[117,5,117,7],[117,8,117,9],[117,10,117,11],[116,1,116,2],[116,3,116,4],[116,5,116,7],[116,8,116,9],[116,10,116,11],[115,1,115,2],[115,3,115,4],[115,5,115,7],[115,8,115,9],[115,10,115,11],[114,1,114,2],[114,3,114,4],[114,5,114,7],[114,8,114,9],[114,10,114,11],[113,1,113,2],[113,3,113,4],[113,5,113,7],[113,8,113,9],[113,10,113,11],[112,1,112,2],[112,3,112,4],[112,5,112,7],[112,8,112,9],[112,10,112,11],[111,1,111,2],[111,3,111,4],[111,5,111,7],[111,8,111,9],[111,10,111,11],[110,1,110,2],[110,3,110,4],[110,5,110,7],[110,8,110,9],[110,10,110,11],[109,1,109,2],[109,3,109,4],[109,5,109,7],[109,8,109,9],[109,10,109,11],[108,1,108,2],[108,3,108,4],[108,5,108,7],[108,8,108,9],[108,10,108,11],[107,1,107,2],[107,3,107,4],[107,5,107,7],[107,8,107,9],[107,10,107,11],[106,1,106,2],[106,3,106,4],[106,5,106,7],[106,8,106,9],[106,10,106,11],[105,1,105,2],[105,3,105,4],[105,5,105,7],[105,8,105,9],[105,10,105,11],[104,1,104,2],[104,3,104,4],[104,5,104,7],[104,8,104,9],[104,10,104,11],[103,1,103,2],[103,3,103,4],[103,5,103,7],[103,8,103,9],[103,10,103,11],[102,1,102,2],[102,3,102,4],[102,5,102,7],[102,8,102,9],[102,10,102,11],[101,1,101,2],[101,3,101,4],[101,5,101,7],[101,8,101,9],[101,10,101,11],[100,1,100,2],[100,3,100,4],[100,5,100,7],[100,8,100,9],[100,10,100,11],[99,1,99,2],[99,3,99,4],[99,5,99,7],[99,8,99,9],[99,10,99,11],[98,1,98,2],[98,3,98,4],[98,5,98,7],[98,8,98,9],[98,10,98,11],[97,1,97,2],[97,3,97,4],[97,5,97,7],[97,8,97,9],[97,10,97,11],[96,1,96,2],[96,3,96,4],[96,5,96,7],[96,8,96,9],[96,10,96,11],[95,1,95,2],[95,3,95,4],[95,5,95,7],[95,8,95,9],[95,10,95,11],[94,1,94,2],[94,3,94,4],[94,5,94,7],[94,8,94,9],[94,10,94,11],[93,1,93,2],[93,3,93,4],[93,5,93,7],[93,8,93,9],[93,10,93,11],[92,1,92,2],[92,3,92,4],[92,5,92,7],[92,8,92,9],[92,10,92,11],[91,1,91,2],[91,3,91,4],[91,5,91,7],[91,8,91,9],[91,10,91,11],[90,1,90,2],[90,3,90,4],[90,5,90,7],[90,8,90,9],[90,10,90,11],[89,1,89,2],[89,3,89,4],[89,5,89,7],[89,8,89,9],[89,10,89,11],[88,1,88,2],[88,3,88,4],[88,5,88,7],[88,8,88,9],[88,10,88,11],[87,1,87,2],[87,3,87,4],[87,5,87,7],[87,8,87,9],[87,10,87,11],[86,1,86,2],[86,3,86,4],[86,5,86,7],[86,8,86,9],[86,10,86,11],[85,1,85,2],[85,3,85,4],[85,5,85,7],[85,8,85,9],[85,10,85,11],[84,1,84,2],[84,3,84,4],[84,5,84,7],[84,8,84,9],[84,10,84,11],[83,1,83,2],[83,3,83,4],[83,5,83,7],[83,8,83,9],[83,10,83,11],[82,1,82,2],[82,3,82,4],[82,5,82,7],[82,8,82,9],[82,10,82,11],[81,1,81,2],[81,3,81,4],[81,5,81,7],[81,8,81,9],[81,10,81,11],[80,1,80,2],[80,3,80,4],[80,5,80,7],[80,8,80,9],[80,10,80,11],[79,1,79,2],[79,3,79,4],[79,5,79,7],[79,8,79,9],[79,10,79,11],[78,1,78,2],[78,3,78,4],[78,5,78,7],[78,8,78,9],[78,10,78,11],[77,1,77,2],[77,3,77,4],[77,5,77,7],[77,8,77,9],[77,10,77,11],[76,1,76,2],[76,3,76,4],[76,5,76,7],[76,8,76,9],[76,10,76,11],[75,1,75,2],[75,3,75,4],[75,5,75,7],[75,8,75,9],[75,10,75,11],[74,1,74,2],[74,3,74,4],[74,5,74,7],[74,8,74,9],[74,10,74,11],[73,1,73,2],[73,3,73,4],[73,5,73,7],[73,8,73,9],[73,10,73,11],[72,1,72,2],[72,3,72,4],[72,5,72,7],[72,8,72,9],[72,10,72,11],[71,1,71,2],[71,3,71,4],[71,5,71,7],[71,8,71,9],[71,10,71,11],[70,1,70,2],[70,3,70,4],[70,5,70,7],[70,8,70,9],[70,10,70,11],[69,1,69,2],[69,3,69,4],[69,5,69,7],[69,8,69,9],[69,10,69,11],[68,1,68,2],[68,3,68,4],[68,5,68,7],[68,8,68,9],[68,10,68,11],[67,1,67,2],[67,3,67,4],[67,5,67,7],[67,8,67,9],[67,10,67,11],[66,1,66,2],[66,3,66,4],[66,5,66,7],[66,8,66,9],[66,10,66,11],[65,1,65,2],[65,3,65,4],[65,5,65,7],[65,8,65,9],[65,10,65,11],[64,1,64,2],[64,3,64,4],[64,5,64,7],[64,8,64,9],[64,10,64,11],[63,1,63,2],[63,3,63,4],[63,5,63,7],[63,8,63,9],[63,10,63,11],[62,1,62,2],[62,3,62,4],[62,5,62,7],[62,8,62,9],[62,10,62,11],[61,1,61,2],[61,3,61,4],[61,5,61,7],[61,8,61,9],[61,10,61,11],[57,1,57,2],[57,3,57,4],[57,5,57,7],[57,8,57,9],[57,10,57,11],[60,1,60,2],[60,3,60,4],[60,5,60,7],[60,8,60,9],[60,10,60,11],[59,1,59,2],[59,3,59,4],[59,5,59,7],[59,8,59,9],[59,10,59,11],[52,1,52,2],[52,3,52,4],[52,5,52,7],[52,8,52,9],[138,1,138,2],[138,3,138,4],[138,5,138,7],[138,8,138,9],[138,10,138,11],[56,1,56,2],[56,3,56,4],[56,5,56,7],[56,8,56,9],[56,10,56,11],[53,1,53,2],[53,3,53,4],[53,5,53,7],[53,8,53,9],[53,10,53,11],[58,1,58,2],[58,3,58,4],[58,5,58,7],[58,8,58,9],[58,10,58,11],[203,1,203,14],[208,9,208,11],[208,3,208,5],[140,1,140,2],[140,3,140,4],[140,5,140,7],[140,8,140,9],[140,10,140,11],[144,1,144,2],[144,3,144,4],[144,5,144,7],[144,8,144,9],[144,10,144,11],[143,1,143,2],[141,10,141,11],[141,5,141,7],[141,8,141,9],[219,2,219,13],[221,2,221,13],[39,1,39,14],[40,1,40,2],[40,3,40,4],[40,5,40,7],[40,8,40,9],[40,10,40,11],[40,13,40,14],[41,1,41,2],[41,3,41,4],[41,5,41,7],[41,8,41,9],[41,10,41,11],[42,1,42,2],[42,3,42,4],[42,5,42,7],[42,8,42,9],[42,10,42,11],[43,1,43,2],[43,3,43,4],[44,3,44,4],[209,2,209,13],[139,5,139,7],[2,1,2,3],[3,2,3,5],[4,2,4,5],[5,1,5,5],[139,1,139,2],[139,3,139,4],[48,1,48,2],[48,3,48,4],[48,5,48,7],[44,1,44,2],[2,7,5,14],[44,5,44,7],[44,8,44,9],[44,10,44,11],[45,1,45,2],[45,3,45,4],[45,5,45,7],[45,8,45,9],[45,10,45,11],[43,10,43,11],[50,8,50,9],[50,10,50,11],[139,8,139,9],[139,10,139,11],[48,10,48,11],[137,1,137,2],[137,3,137,4],[137,5,137,7],[51,1,51,2],[51,3,51,4],[51,5,51,7],[51,8,51,9],[52,10,52,11],[55,1,55,2],[55,3,55,4],[55,5,55,7],[55,8,55,9],[55,10,55,11],[49,1,49,2],[49,3,49,4],[49,5,49,7],[49,8,49,9],[49,10,49,11],[54,1,54,2],[54,3,54,4],[54,5,54,7],[54,8,54,9],[54,10,54,11],[217,3,217,13],[37,12,37,14],[37,1,37,11],[218,2,218,13],[220,2,220,13],[216,2,216,13],[145,1,145,14],[51,10,51,11],[50,1,50,2],[50,3,50,4],[50,5,50,7],[46,1,46,2],[46,3,46,4],[46,5,46,7],[46,8,46,9],[46,10,46,11],[47,1,47,2],[47,3,47,4],[47,5,47,7],[47,8,47,9],[47,10,47,11],[43,5,43,7],[43,8,43,9],[48,8,48,9]]}
[]
[null,{"$f":"Utilitaire!E8","v":"Plan d'action 2013-2020 sur les changements climatiques"},null,null,null,null,null,"Conseils de rédaction :",null,null,null,null,"Informations en date du :",{"$f":"Utilitaire!G6","v":"2022-03-31"}]
[null,{"$f":"\"Action \" & Accueil!D58","v":"Action en cours"},null,null,null,null,null,"- Veuillez compléter la section \"Évaluation de l'action\" (OBLIGATOIRE) - ligne 204 (Fin du PACC)\n\n- Cet onglet sera pour usage interne seulement, il ne sera pas publié.\n\n- Des bulles commentaires dans chacun des titres vous aideront à remplir adéquatement les différentes colonnes.\n\n- Les cases de la section « Évaluation de l'action » sont limitées à 3000 caractères. "]
[null,{"$f":"Accueil!D55","v":"29.2.2"},{"$f":"Accueil!E55","v":"Adapter les outils de conservation de la faune aux changements climatiques: espèces menacées vulnérables (EMV) et espèces exotiques envahissantes (EEE)"}]
[null,"Ministère porteur:",{"$f":"Accueil!$D$65","v":"MFFP"}]
[null,"Évaluation"]
[null,"Informations en date du :",null,"2022-03-31"]
[]
[]
[]
[]
[]
[]
[]
[]
[]
[]
[]
[]
[]
[]
[]
[]
[]
[]
[]
[]
[]
[]
[]
[]
[]
[]
[]
[]
[]
[]
[null,"Est-ce qu'une production d'un rapport d'évaluation complet est prévue dans le cadre de cette action : ",null,null,null,null,null,null,null,null,null,null,"Non"]
[]
[null,"Liste des livrables"]
[null,"Titre du document",null,"Date du document",null,"Type de document",null,null,"Date prévue de transmission au BECC",null,"Date réelle de transmission au BECC",null,"Référence","Commentaires"]
[null,"35 Fiches synthèses de projet en adaptation aux changements climatiques pour la conservation (Dossier: fiche synthèse)",null,null,null,"Rapport d'évaluation",null,null,"2021-12-15",null,"2022-06-10",null,"Divers","Plusieurs fiches sont maintenant disponible et seront publiées via un rapport également. Chaque fiche fait l'objet d'un rapport individuel disponible sur demande mais qui ne seront pas transmis  "]
[null,"Analyse de vulnérabilité des espèces menacées et vulnérables aux changements climatiques ",null,null,null,"Rapport d'évaluation",null,null,"2021-12-15",null,null,null,"Ricard, M., C. Caron et A. Simard, 2021. Vulnérabilité des espèces fauniques en situation précaire du Québec aux changements climatiques. Préparé par le Bureau d’écologie appliquée pour le ministère des Forêts, de la Faune et des Parcs du Québec. XX pages.","Une analyse plus complète est en cours de rédaction."]
[null,"Rapport et manuscrit : Une analyse de faisabilité la migration assistée pour la conservation des EMV dans un contexte de changements climatiques (Migration_assistée_20191127_préliminaire.pdf)",null,null,null,"Rapport d'évaluation",null,null,"2021-12-15",null,null,null,"RICARD, M., N. BOUSQUET, A. LACHANCE et A. SIMARD (2019). La migration assistée comme mesure d’adaptation aux changements climatiques : évaluation du potentiel d’utilisation au Québec, ministère des Forêts, de la Faune et des Parcs du Québec, Service de l","Le rapport est en attente d'autorisation et de l'ajout d'une section supplémentaire, le manuscrit est publié"]
[null,"Analyse de risque des espèces exotiques envahissantes et des maladies dans un contexte de changements climatiques et impacts possibles pour les espèces menacées et vulnérables ",null,null,null,"Rapport d'évaluation",null,null,"2021-12-15",null,null,null,"Beaulieu, É., S. Langevin, A. Lachance, A. Massé et W. Hamel, 2021. Analyse de risques des espèces exotiques envahissantes et de leurs impacts actuels et appréhendés sur les espèces fauniques en situation précaire au Québec. Bureau d’écologie appliquée, présenté au Ministère des Forêts, de la Faune et des Parcs (MFFP), 40 p. + 6 annexes. ","En révision"]
[null,"Guide des mesures favorisant l'adaptation aux changements climatiques des espèces fauniques vulnérables et exemples concrets réalisés au Québec",null,null,null,"Rapport d'évaluation",null,null,"2021-12-15",null,null,null,"Desjardins, D., M. Ricard, E. Raby-Chassé et A. Simard. 2022. Guide sur les mesures d’adaptation aux changements climatiques : favoriser la conservation de la biodiversité.(en cours)","En révision. Vise à intégrer les 35 fiches synthèse et valoriser les mesures d'adaptation effectuées dans un contexte plus large."]
[null,"Différentes études sur l'habitat de la rainette faux-grillon (Dossier: documentation rainette)",null,null,null,"Rapport d'évaluation",null,null,"2018-12-12",null,"2020-02-20",null,"BOUTHILLIER, L. (Date inconnue). Étude des habitats potentiels au mont Saint-Bruno pour l'aménagement d'habitats pour la rainette faux-grillon, Rapport préparé par le gouvernement du Québec, 120 p.","Rapport individuel disponible sur demande."]
[null,"Analyse de risque pour l'invasion des espèces d'aquariums dans un contexte de changements climatiques (rapport: 13_Venezia_Samson_leung_2018.pdf)",null,null,null,"Rapport d'évaluation",null,null,"2018-12-12",null,"2020-02-20",null,"VENEZIA, L. D., J. SAMSON et B. LEUNG. (2017). \"The rich get richer: Invasion risk across North America from the aquarium pathway under climate change\", Wiley Diversity and Distribution, 2017; 1-2.","Rapport individuel disponible sur demande."]
[null,"Intrégration des aspects des changements climatiques dans les plans de rétablissement (Rapport : 2_2018_Adapatition_CC_plan_retablissement_Samson)",null,null,null,"Rapport d'évaluation",null,null,"2018-12-12",null,"2020-02-20",null,"SAMSON, J. (2018). Rapport final de la conservation de la faune dans un contexte de changements climatiques au Québec, rapport préparé par le Centre de la Science de la biodiversité du Québec (CSBQ), 99 p.     ET     SAMSON, J. (2018). Impacts de changeme","Chaque plan de rétablissement publié sur notre site a maintenant une section changement climatique : REF"]
[null,"Développement d'une approche intégrée pour évaluer la vulnérabilité des espèces menacées aux changements climatiques    (Samson_CSBQ_MFFP_livrables_mars_2017)",null,null,null,"Rapport d'évaluation",null,null,"2020-08-28",null,"2020-02-20",null,"SAMSON, J. (2017). Rapport final des travaux de la portion stratégie de conservation des espèces menacées en date du 15 Mars 2017, Rapport préparé par le Centre de la Science de la Biodiversité du Québec (CSBQ), 138 p. + 6 annexes."]
[null,"Bilan de surveillance des espèces exotiques envahissantes par ADN environnementale (rapport: 3_2018-09_04_detection_cladocère_2017)",null,null,null,"Rapport d'évaluation",null,null,"2018-12-12",null,"2020-02-20",null,"MORISSETTE, O., R. POULIOT et G. CÔTÉ. (Date inconnue). La détection hâtive et le suivi du cladocère épineux et de la puce d'eau en hameçon dans les eaux québécoises - Bilan des activités de détection en 2015 et 2017, 15 p. ","Rapport individuel disponible sur demande."]
[null,"Article sur le développement d'amorce pour le suivi des EMV et des EEE (Hernandez 2019 amorce ADNe.pdf)",null,null,null,"Rapport d'évaluation",null,null,"2019-01-15",null,"2019-01-15",null,"HERNANDEZ, C. (2019). \"50 specific eDNA qPCR assays to detect invasive, threatened and exploited freshwater vertebrates and invertebrates in Estern Canada\", Environmental DNA, 28 p.","Rapport individuel disponible sur demande."]
[null,"Bilan des études sur l'hydrologie des habitats de rainette dans un contexte de CC  ",null,null,null,"Rapport d'évaluation",null,null,"2025-12-15",null,null,null,"PICARD, I. (2017). Projet restaurer et améliorer les écosystèmes humides protégés de la Rive-Sud de Montréal 2016-2019 « Projet Boucherville », rapport préparé par Ciel et Terre, 198 p. + 8 annexes.","Rapport individuel disponible sur demande."]
[null,"Fiche internet (MFFP ET SENTINELLE)",null,null,null,"Résultats",null,null,"2020-08-28",null,"2020-08-28",null,"https://mffp.gouv.qc.ca/la-faune/especes/envahissantes/  ET   https://www.pub.mddefp.gouv.qc.ca/scc/#no-back-button","Sites Internet"]
[null,"Lignes directrices sur la migration assisté",null,null,null,null,null,null,"2022-12-15",null,null,null,"Ricard, M., C. Caron, A. Lachance, N. Bousquet et A. Simard. 2021. La migration assistée : une option de conservation pour les espèces en situation précaire vulnérables aux changements climatiques? Naturaliste Canadien. 145 (1):3-20."]
[null,"Article sur la migration assisté",null,"2021-03-16",null,"Rapport d'évaluation",null,null,"2021-04-15",null,"2022-06-10",null,"Ricard, M. M-A. Vaillancourt, A. Simard. 2022. La migration assistée comme mesure d’adaptation aux changements climatiques pour la conservation des espèces– Processus décisionnel et de mise en œuvre au Québec. ","https://www.erudit.org/fr/revues/natcan/2021-v145-n1-natcan05887/1075814ar/"]
[]
[]
[]
[]
[]
[]
[]
[]
[]
[]
[]
[]
[]
[]
[]
[]
[]
[]
[]
[]
[]
[]
[]
[]
[]
[]
[]
[]
[]
[]
[]
[]
[]
[]
[]
[]
[]
[]
[]
[]
[]
[]
[]
[]
[]
[]
[]
[]
[]
[]
[]
[]
[]
[]
[]
[]
[]
[]
[]
[]
[]
[]
[]
[]
[]
[]
[]
[]
[]
[]
[]
[]
[]
[]
[]
[]
[]
[]
[]
[]
[]
[]
[]
[]
[]
[]
[]
[]
[]
[null,"Ajouter une ligne"]
[]
[]
[]
[]
[]
[]
[]
[]
[]
[]
[]
[]
[]
[]
[]
[]
[]
[]
[]
[]
[]
[]
[]
[]
[]
[]
[]
[]
[]
[]
[]
[]
[]
[]
[]
[]
[]
[]
[]
[]
[]
[]
[]
[]
[]
[]
[]
[]
[]
[]
[]
[]
[]
[]
[]
[]
[]
[null,"Évaluation de l'action"]
[]
[]
[]
[]
[null,null,"Début : ",{"$f":"Accueil!$D$68","v":"2013-04-01"},null,null,null,null,"Fin : ",{"$f":"Accueil!$K$68","v":"2025-12-01"}]
[null,"Résultats attendus : ",{"$f":"IF(LEN(Description!C49)>0,Description!C49,\"\")","v":"A- Volet EMV :\nA1) identifier les EMV les plus à risque face aux CC et aux menaces synergétiques;\nA2) améliorer les connaissances quant aux impacts des changements climatiques sur l'hydrologie de certains habitats essentiels pour les EMV (ex. rainette faux-grillon et salamandre);\nA3) intégrer les CC dans les plans de rétablissement;\nA4) réaliser des mesures d'adaptation concrètes sur les EMV en partenariat avec différents ONG;\nA5) améliorer la gestion des EMV par le développement d'une approche multiespèce facilitant l'adaptation;\nA6) documenter les mesures d'adaptation potentielles pour les EMV, incluant la migration assistée.  \n\nB - Volet EEE :\nB1) identifier le risque d'introduction d'EEE lié aux CC;\nB2) améliorer notre capacité à détecter les EEE par la surveillance;\nB3) diminuer les risques d'introduction et de propagation des EEE par des actions de sensibilisation (ex. : Nord);\nB4) restaurer les habitats affectés par les EEE afin de diminuer la vulnérabilité des EMV aux CC."}]
[null,"Résultats obtenus \n(Cibles, indicateurs et description) : ",{"$f":"IF(COUNTA(Indicateurs!B25:B45)=0,0,AVERAGE(Indicateurs!$T$25:$T$45))","v":1.0871138419525517},{"$f":"IF(LEN(Description!C50)>0,Description!C50,\"\")","v":"A1) Analyse de risque pour les EMV selon la méthode Nature Serve (en révision);\nA2) Hydrologie de l'habitat de la rainette faux-grillon (protocole de suivi) en developpement (nouveau contrat) et nouveau volet sur les salamandres des ruisseaux (nouveau contrat);\nA4) Adaptation EMV: 3 projets EMV et 1 projet EEE en 2020;\nA6) Publication d'un manuscrit sur la migration assitée dans le Naturaliste canadien;\nA6) Guide de mesures d'adaptation (en révision);\nB1) Revue des risques de différentes EEE et calculateur de risques selon différents scénarios climatiques;\nB2) Ligne directrice pour la migration assisté au Québec."}]
[null,null,null,{"$f":"IF(LEN(Description!C51)>0,Description!C51,\"\")","v":"A1) Analyse de la vulnérabilité des EMV (partie 1);\nA2) Hydrologie de l'habitat de la rainette faux-grillon : analyse lidar, suivi des niveaux d'eau;\nA3) Intégration des CC dans les plans de rétablissement;\nA4) Adaptation EMV: multiples projets réalisés, chacun avec une fiche projet;\nA5) Analyse de menaces par habitat pour les EMV;\nA6) Évaluation des mesures d'adaptation (+/-) qui s'appliquent aux EMV: la migration assistée;\nB1) Identification des risques d'introduction d'EEE liés aux CC : sanglier et poissons d'aquarium;\nB2) Surveillance des EEE par ADN environnemental : développement de la méthode fleuve Saint-Laurent, suivi en eau intérieure;\nB3) Fiches Internet sur les EEE intégrant les CC et plan de communication limitant les EEE en régions nordiques;\nB4) Projet visant à réduire l'impact des plantes EEE dans l'habitat de la rainette faux-grillon."}]
[]
[]
[]
[]
[null,"Type d'évaluation : ","En cours d'action"]
[null,"Est-ce que les résultats obtenus dans le cadre de l'action sont satisfaisants?","Oui","Cette action a permis de positionner la conservation des espèces menacées vulnérables (EMV) dans une perspectives d'adaptation aux CC. Certains livrables finaux restent à venir, mais un gros progrès a été fait au niveau de la connaissance des enjeux EMV et EEE. Aussi le partenariat avec des ONG pour déjà mettre en place des mesures concrètes a été plus qu'avantageux et a permis une belle synergie qui sera visible dans un guide d'adaptation. "]
[null,"Quelles sont les améliorations possibles pour le futur?","Le partenarait pour les différents projets d'adpaptation avec les ONG a été beaucoup géré à l'interne, mais si une telle initiative se reproduisait, un transfert vers la fondation de la faune pour créer un programmme sur l'adaptation aux changements climatiques serait faciliant."]
[null,"Quels sont les forces et les points positifs de l'action?","Le partenariat avec les ONG pour valoriser des projets en adaptation.\nLes projets universitaires qui permettent de mettre de l'avant les connaissances sur les impacts des EMV pour la faune (analyse de niche, enjeux hydrologiques, progression EEE).\nLes projets synthèses réalisés en partenariat avec le bureau d'écologie appliquée qui seront vraiment utiles pour le futur. \nUn premier article sur les enjeux et la pertinance de la migration assistée comme solution d'adaptation.\nEffectuer l'amorce d'une reflexion multiespèce pour l'adpatation aux changements climatiques."]
[null,"Quelle est votre recommandation quant à la poursuite de cette action? ","Reconduire"]
[null,"Autres commentaires","Continuer à promouvoir une approche d'adaptation basée sur la conservation des espèces, des milieux naturels et sur l'adaptation basée sur les écosystèmes est vraiment un aspect avantageux pour nos sociétés à ne pas négliger. Certaines actions pourraient se prousuivre dans le volet connectivité du PEV."]

{"sheet":"Commentaires","index":7,"n_rows":33,"n_cols":20,"rows_kept":33,"cut":false,"hidden":true,"merged":[[26,1,26,11],[28,12,28,13],[28,1,28,11],[33,12,33,13],[33,1,33,11],[31,12,31,13],[32,12,32,13],[29,1,29,11],[27,1,27,11],[24,12,24,13],[25,12,25,13],[26,12,26,13],[27,12,27,13],[29,12,29,13],[34,1,34,11],[34,12,34,13],[31,1,31,11],[32,1,32,11],[30,1,30,11],[30,12,30,13],[24,1,24,11],[3,2,3,5],[5,1,5,5],[25,1,25,11],[2,1,2,2],[4,2,4,5],[19,1,19,3],[19,4,19,5],[1,7,1,11],[2,7,5,17],[23,1,23,11],[23,12,23,13],[1,1,1,5],[1,15,1,16]]}
[]
[null,{"$f":"Utilitaire!E8","v":"Plan d'action 2013-2020 sur les changements climatiques"},null,null,null,null,null,null,null,null,null,null,null,null,null,null,null,null,null,"COF"]
[null,{"$f":"\"Action \" & Accueil!D58","v":"Action en cours"},null,null,null,null,null,null,null,null,null,null,null,null,null,null,null,null,null,"Frais"]
[null,{"$f":"Accueil!D55","v":"29.2.2"},{"$f":"Accueil!E55","v":"Adapter les outils de conservation de la faune aux changements climatiques: espèces menacées vulnérables (EMV) et espèces exotiques envahissantes (EEE)"},null,null,null,null,null,null,null,null,null,null,null,null,null,null,null,null,"ETC"]
[null,"Ministère porteur:",{"$f":"Accueil!$D$65","v":"MFFP"},null,null,null,null,null,null,null,null,null,null,null,null,null,null,null,null,"Détail des projets"]
[null,"Commentaires",null,null,null,null,null,null,null,null,null,null,null,null,null,null,null,null,null,"Détail des projets (GES)"]
[null,null,null,null,null,null,null,null,null,null,null,null,null,null,null,null,null,null,null,"Bilan GES"]
[null,null,null,null,null,null,null,null,null,null,null,null,null,null,null,null,null,null,null,"Indicateurs"]
[null,null,null,null,null,null,null,null,null,null,null,null,null,null,null,null,null,null,null,"Toutes-Autre"]
[]
[]
[null,null,null,null,null,null,null,null,null,null,null,null,null,null,null,null,null,null,null,"2013-2014"]
[null,null,null,null,null,null,null,null,null,null,null,null,null,null,null,null,null,null,null,"2014-2015"]
[null,null,null,null,null,null,null,null,null,null,null,null,null,null,null,null,null,null,null,"2015-2016"]
[null,null,null,null,null,null,null,null,null,null,null,null,null,null,null,null,null,null,null,"2016-2017"]
[null,null,null,null,null,null,null,null,null,null,null,null,null,null,null,null,null,null,null,"2017-2018"]
[null,null,null,null,null,null,null,null,null,null,null,null,null,null,null,null,null,null,null,"2018-2019"]
[null,null,null,null,null,null,null,null,null,null,null,null,null,null,null,null,null,null,null,"2019-2020"]
[null,null,null,null,null,null,null,null,null,null,null,null,null,null,null,null,null,null,null,"2020-2021"]
[null,"Informations en date du :",null,null,"2022-03-31",null,null,null,null,null,null,null,null,null,null,null,null,null,null,"2021-2022"]
[null,null,null,null,null,null,null,null,null,null,null,null,null,null,null,null,null,null,null,"2022-2023"]
[null,null,null,null,null,null,null,null,null,null,null,null,null,null,null,null,null,null,null,"2023-2024"]
[]
[null,"Commentaires",null,null,null,null,null,null,null,null,null,null,"Section concernée",null,"Année","Exercice","nom Commentateur ","courriel Commentateur "]
[null,"",null,null,null,null,null,null,null,null,null,null,"",null,null,"","",""]
[]
[null,"",null,null,null,null,null,null,null,null,null,null,"",null,null,"","",""]
[null,"",null,null,null,null,null,null,null,null,null,null,"",null,null,"","",""]
[]
[]
[]
[null,"",null,null,null,null,null,null,null,null,null,null,"",null,null,"","","",null,"juin"]
[null,"",null,null,null,null,null,null,null,null,null,null,"",null,null,"","","",null,"décembre"]

{"sheet":"Validation","index":8,"n_rows":85,"n_cols":7,"rows_kept":85,"cut":false,"hidden":true,"merged":[[3,3,3,6],[3,1,3,2],[17,1,17,5],[18,1,18,4],[4,3,4,6],[7,1,7,3],[7,4,7,5],[21,5,22,5],[23,5,24,5],[25,5,26,5],[26,1,26,4],[22,1,22,4],[24,1,24,4],[1,1,1,6],[19,1,19,4],[31,1,31,4],[28,1,28,5],[47,1,47,5],[30,1,30,4],[16,1,16,6],[21,1,21,4],[23,1,23,4],[25,1,25,4],[20,1,20,5],[27,1,27,4],[29,1,29,4],[5,1,5,6],[2,1,2,2],[4,1,4,2],[49,1,49,4],[34,1,34,4],[48,1,48,4],[48,5,49,5],[32,1,32,4],[33,1,33,4],[35,1,35,4],[36,1,36,5],[41,1,41,4],[25,6,26,6],[48,6,49,6],[51,6,52,6],[57,1,57,4],[37,1,37,4],[43,1,43,4],[38,1,38,4],[39,1,39,4],[40,1,40,4],[50,1,50,4],[51,1,51,4],[52,1,52,4],[56,1,56,5],[51,5,52,5],[54,1,54,4],[55,1,55,4],[53,1,53,4],[59,1,59,5],[60,1,60,4],[61,1,61,4],[8,1,8,6],[13,1,13,6],[14,1,14,6],[46,1,46,4],[45,1,45,4],[44,1,44,4],[45,6,46,6],[45,5,46,5],[42,1,42,5],[58,1,58,4],[21,6,22,6],[23,6,24,6]]}
[]
[null,{"$f":"Utilitaire!E8","v":"Plan d'action 2013-2020 sur les changements climatiques"}]
[null,{"$f":"\"Action \" & Accueil!D58","v":"Action en cours"}]
[null,{"$f":"Accueil!D55","v":"29.2.2"}]
[null,"Ministère porteur:",null,{"$f":"Accueil!$D$65","v":"MFFP"},{"$f":"Accueil!$D$65","v":"MFFP"}]
[null,"Rapport de validation de la fiche de suivi"]
[]
[null,"Conseils de rédaction : ",null,null,"Informations en date du :",null,{"$f":"Utilitaire!G6","v":"2022-03-31"}]
[null,"\n\n'- Cet onglet ne sera pas diffusé.\n\n- Nous apprécierions vos commentaires constructifs par rapport aux nouvelles fiches de suivi. La case B15 est réservée à cet effet.\n\n- Complétez la grille de validation ci-dessous (ligne 19) en cochant chaque point. Vous pouvez inscrire des commentaires à l'endroit prévu à cet effet."]
[]
[]
[]
[]
[null,"Votre appréciation de la fiche de suivi et suggestions pour les prochains exercices"]
[]
[]
[null,"Grille de validation de la fiche de suivi"]
[null,"Fin du PACC",null,null,null,null,"Commentaires"]
[null,"Avez-vous complété le tableau de la ligne 204 de l'onglet Évaluation?"]
[null,"Avez-vous saisi tous vos engagements à SAGIR (vous avez jusqu'au 31 mai)?"]
[null,"Onglet Accueil",null,null,null,null,"Commentaires"]
[null,"Vérifier que toutes les cases sont remplies."]
[null,"Les cases non remplies s'affichent en orange\nLes lignes 69 à 73 seront masquées pour la publication."]
[null,"Vérifier que la part de financement est écrite sous forme de pourcentage (ex. : 60 %)."]
[null,"Inscrire un nombre entre 0 et 100 suivi du symbole \"%\". Si le pourcentage est variable, inscrire \"Variable\"."]
[null,"Vérifier que le statut de l'action est toujours conforme avec son évolution."]
[null,"Utiliser l'information des onglets \"Description\" et Détail des projets\" afin que le statut soit conforme avec\n l'évolution de l'action."]
[null,"Vérifier, s'il y a lieu, que le nom du programme est inscrit."]
[null,"Onglet Description",null,null,null,null,"Commentaires"]
[null,"Vérifier que toutes les cases obligatoires sont remplies."]
[null,"Vérifier que tous les éléments pertinents en lien avec le COVID-19 sont inscrits au tableau prévu à cet effet."]
[null,"Vérifier que les éléments de classification de l'action sont sélectionnés à partir du menu déroulant."]
[null,"Vérifier que l'entièreté du texte est lisible. "]
[null,"Vérifier que l'échéancier dans la section \"Mise en œuvre\" est inscrit."]
[null,"Vérifier que l'état d'avancement est sélectionné à partir du menu déroulant."]
[null,"Vérifier que le tableau \"Plans, stratégies, politiques incluant la mise en œuvre de cette action\" est rempli."]
[null,"Onglet Détail des projets",null,null,null,null,"Commentaires"]
[null,"Vérifier que les informations confidentielles sont inscrites en bleu."]
[null,"Transmettre au BECC le rapport des résultats, si un projet est terminé."]
[null,"Vérifier le total des dépenses réelles de tous les projets correspond à celui inscrit dans les COF pour chaque année financière complétée."]
[null,"Vérifier que le total des dépenses réelles et prévues pour un projet n'excède pas le montant engagé."]
[null,"Vérifier l'utilisation des nouveaux statuts de projets pour les projets affectés par le COVID-19"]
[null,"Onglet GES",null,null,null,null,"Commentaires"]
[null,"Vérifier que le total des réductions de GES correspond aux données de l'onglet \"Indicateurs\"."]
[null,"Vérifier que les deux cases de la ligne 20 sont bien remplies."]
[null,"Vérifier que le coût la tonne et la durée du projet sont bien indiqués pour tous les projets ayant soit un potentiel de réduction ou des réductions réelles (colonnes H et K)."]
[null,"La méthode de calcul du coût la tonne doit respecter les indications en commentaire dans la cellule H23."]
[null,"Onglet Indicateurs",null,null,null,null,"Commentaires"]
[null,"Vérifier la cohérence des cibles, des résultats et des résultats à comparer avec les cibles.\n (même unité de mesure, évolution des résultats annuels)"]
[null,"S'il y a lieu, utiliser la colonne \"Commentaires sur les résultats\" afin de fournir davantage d'informations."]
[null,"Vérifier que les commentaires à l'intention du BECC qui ne sont pas pour diffusion sont inscrits en bleu."]
[null,"Vérifier qu'il y a des résultats pour tous les indicateurs. Inscrire un 0 comme résultat pour les \n indicateurs ne présentant pas de résultats."]
[null,"Si les résultats ne sont pas disponibles, vous devez inscrire un commentaire dans la colonne prévue\n à cet effet indiquant à quel moment ils seront disponibles."]
[null," Transmettre au BECC pour approbation une annexe 4 (fiche-indicateur) si vous désirez qu'un indicateur soit ajouté."]
[null,"Vérifier que le tableau \"PRÉVISIONS DES RETOMBÉES SUR LES RÉDUCTIONS DES ÉMISSIONS DE GES\" est bien rempli si votre action vise la réduction des GES."]
[null,"Vérifier que le tableau \"ADAPTATION AUX EFFETS DES CHANGEMENTS CLIMATIQUES\" est bien rempli si votre action vise l'adaptation aux changements climatiques."]
[null,"Onglet Commentaires",null,null,null,null,"Commentaires"]
[null,"Vérifier que les commentaires de l'exercice précédent s'appliquent toujours. Retirer tous les\n commentaires qui ne s'appliquent plus."]
[null,"Inscrire en noir les commentaires nécessaires à afficher lors de la publication des fiches"]
[null,"Onglet Évaluation",null,null,null,null,"Commentaires"]
[null,"Remplir et mettre à jour la liste des livrables. Veuillez transmettre tout livrable attendu au BECC avec votre fiche de suivi."]
[null,"Veuillez remplir la section Évaluation de l'action. Obligatoire pour la fin du PACC."]
[]
[]
[]
[]
[]
[]
[]
[]
[]
[]
[]
[]
[]
[]
[]
[]
[]
[]
["Code de couleur","Onglet concerné","no ligne","Description de la problématique","No d'erreur",null,"Commentaires"]
[null,"Description",null,"Les informations \"Description, objectif, clientèle, critères d'admissibilité, processus de suivi de l'action, résultats attendus, résultats obtenus dans la dernière année, résultats obtenus, finalité, catégorie\" sont manquantes dans l'onglet Description.",18]
[null,"détail des projets",null,"Aucun projet n'est mentionné dans la fiche. Cette situation est acceptable seulement si l'action n'est pas encore lancée (statut non démarrée ou en élaboration).",12]
[null,"GES",null,"Les informations \"Potentiel de réduction des GES, réduction réelle des émissions de GES\" sont manquantes dans l'onglet GES.",18]
[null,"indicateurs",null,"Aucun indicateur n'est inscrit pour cette action. Acceptable seulement si l'action n'est pas démarrée.",20]

{"sheet":"Modalités de fin du PACC","index":9,"n_rows":23,"n_cols":5,"rows_kept":23,"cut":false,"hidden":true,"merged":[[15,2,15,13],[16,2,16,13],[13,1,13,12],[1,1,1,13],[22,2,22,13],[3,2,3,3],[4,2,4,3],[5,2,5,3],[7,2,7,3],[6,2,6,3],[8,1,8,13],[17,2,17,13],[19,2,19,13],[20,2,20,13],[21,2,21,13],[18,3,18,13],[12,1,12,13],[14,2,14,13]]}
[]
[null,"Échéancier de la fin du Plan d'action 2013-2020 sur les changements climatiques"]
[]
[null,"-","2021-03-31",null,"Fin du PACC. Vous ne pouvez plus prendre de nouveaux engagements en vertu des actions du PACC."]
[null,"-","2021-05-31",null,"Échéance pour saisir dans SAGIR les engagements (lettre d'octroi suffisante) pris avant le 31 mars."]
[null,"-","2021-12-31",null,"Échéance pour signer les conventions de subventions se rapportant aux engagements saisis à SAGIR."]
[null,"-","2022-12-31",null,"Fin des projets réalisés à l'interne des Partenaires"]
[null,"-","2025-12-31",null,"Fin des projets"]
[null,"Lorsque tous les projets liés à une action seront terminés et que tous les résultats liés à l'action seront colligés, l'action sera inscrite comme étant « terminée » et sera retirée du suivi semestriel."]
[]
[]
[]
[null,"Modalités détaillées de la fin du PACC"]
[null,"(Ces modalités sont annexées à l'entente administrative concernant la mise en œuvre du PACC et concordent avec l'échéancier ci-dessus)"]
[null,null,"1. Les enveloppes budgétaires 2013-2020 des actions et sous-actions (Annexe 2 de l’ENTENTE) doivent être respectées en tout temps."]
[null,null,"2. Tous les engagements (c.-à-d. une dépense jugée admissible et autorisée) doivent être pris avant le 31 mars 2021. Après cette date, les engagements pris ne peuvent plus être bonifiés."]
[null,null,"3. Tous les engagements pris avant le 31 mars 2021 (par exemple : lettre d’octroi de subvention signée par vos autorités, contrat, convention ou entente signés, décret ou CT approuvé) doivent être saisis dans SAGIR au plus tard le 31 mai 2021. Une nouvelle version de la « Procédure de comptabilisation des dépenses portées au débit du Fonds d’électrification et de changements climatiques par les ministères et organismes partenaires » sera transmise ultérieurement lors de la fermeture de la fin d’année financière 2020-2021 afin de tenir compte de la fin du PACC."]
[null,null,"4. Les conventions d’aide financière qui ne pourront être signées avant le 31 mars 2021 pourront être reconnues comme engagées seulement si le Partenaire transmet une lettre d’octroi de subvention au bénéficiaire avant cette date :"]
[null,null,null,"· La lettre d’octroi devra mentionner le montant total de la subvention avec le détail des versements estimés par année financière et devra préciser qu’elle est conditionnelle à une décision du Conseil des ministres ou du Conseil du trésor lorsqu’applicable. Enfin, la lettre devra préciser que la subvention est conditionnelle à la signature d’une convention de subvention au plus tard le 31 décembre 2021."]
[null,null,"5. Aucun engagement ne pourra s’échelonner au-delà du 31 décembre 2025."]
[null,null,"6. Les frais d’administration (dépenses de rémunération et de fonctionnement) nécessaires au suivi de conventions d’aide financière ou de contrats pourront être imputés au FECC jusqu’au terme des projets ou au plus tard au 31 décembre 2025."]
[null,null,"7. Les suivis se poursuivront tant que les actions ne seront pas terminées."]
[null,null,"8. Aucune dépense pour les projets réalisés à l’interne (projets majoritairement réalisés en régie interne par le personnel du Partenaire) ne pourra être effectuée au-delà du 31 mars 2022."]

{"sheet":"Prochain Exercice-Commentaire","index":10,"n_rows":10,"n_cols":6,"rows_kept":10,"cut":false,"hidden":true,"merged":[[6,1,6,5],[5,3,5,4],[1,1,2,5],[3,1,4,2],[3,4,3,5],[4,4,4,5],[5,1,5,2]]}
[]
[null,{"$f":"Utilitaire!E8","v":"Plan d'action 2013-2020 sur les changements climatiques"}]
[]
[null,"Commentaires",null,null,{"$f":"Accueil!D65 & \" - \" &Accueil!D53","v":"MFFP - 29.2"}]
[null,null,null,null,{"$f":"\"Action \" & Accueil!D58","v":"Action en cours"}]
[null,"Conseils de rédaction :",null,"Informations en date du :",null,{"$f":"Utilitaire!G6","v":"2022-03-31"}]
[null,"- Veuillez inscrire ici tout commentaire pour prochain exercice"]
[]
[]
[null,"Onglet de la fiche","Case","Commentaire"]